Cogmind - Beta 14 @@@ ROGUE MODE // 2025.01.10 @ 19:07:13 Player: N.W.L Result: Destroyed by Architect with Modified Sigix Sheargun Performance ------------- Evolutions (9) 4500 Regions Visited (30) 6000 Robots Destroyed (522) 2610 Value Destroyed (26439) 26439 Prototype IDs (319) 6380 Alien Tech Used (9) 1800 Bonus (34826) 34826 TOTAL SCORE: 82555 Bonus ------- High Alert Combat Kills 1369 Follower Combat Kills 3108 Network Hubs Disabled 400 Aligned with FarCom 300 Met Warlord at Base 500 MAIN.C Attacked Warlord 500 Warlord Defense Kills 340 Built Enhanced Grunts 300 A7 Reached Mainframe 300 Met R17 at Cetus 500 Met R17 at Research 2000 Met Warlord at Research 2000 Scanned by Researcher 500 Met Sigix 2000 Destroyed MAIN.C Guards 500 Met MAIN.C 5000 Hacked MAIN.C 300 Destroyed MAIN.C Shell 5000 Destroyed MAIN.C 10000 Met Architect 300 Destroyed A8 300 Destroyed A6 400 Friendly Fire -1091 Cogmind --------- Core Integrity 0/1600 Matter 140/300 Energy 80/100 System Corruption 0% Temperature Cool (0) Movement Core (50) Location -1/Access_0 Parts ------- > --- POWER (2) -------- (None) > --- PROPULSION (6) --- (None) > --- UTILITY (14) ----- Microwarp Drive > --- WEAPON (3) ------- (None) > --- INVENTORY (5) ---- Quantum Capacitor Peak State ------------ > --- POWER ------------ Quantum Reactor Improved Quantum Reactor > --- PROPULSION ------- Experimental Biometal Heavy Treads High-density Centrium Heavy Treads High-density Centrium Heavy Treads > --- UTILITY ---------- Huge Storage Unit Experimental Optical Array Advanced Sensor Array Experimental Signal Interpreter Experimental Core Analyzer Advanced Weapon Cycler Advanced Transmission Jammer SHELL Armor Improved Hacking Suite Advanced Hacking Suite Microwarp Drive > --- WEAPON ----------- Firepult Phasing Sabre > --- INVENTORY -------- Quantum Reactor Centrium Heavy Treads Experimental Cooling System Experimental Energy Well Compact Matter Pod Advanced Kinecellerator Thermal Barrier Experimental EM Disruption Field High-powered Transdimensional Reconstructor Subatomic Replicator Microwarp Drive Disruptor Cannon Vortex Cannon Enhanced Nova Cannon Improved Potential Cannon Hypercooled Linear Accelerator Hypercooled Linear Accelerator Hypercooled Linear Accelerator Gamma Bomb Array Sigix Containment Pod [Rating: 245] Favorites ----------- Power Vortex Chain Reactor Engine Heavy Ion Engine Power Core Fission Core Reactor Vortex Chain Reactor Propulsion Light Treads Treads Light Treads Leg Myomer Leg Wheel Compact Wheel Flight Unit Improved VTOL Module Utility Huge Storage Unit Device Experimental Sensor Array Storage Huge Storage Unit Processor Experimental Core Analyzer Hackware Hacking Suite Protection SHELL Armor Artifact Microwarp Drive Weapon Heavy Plasma Cannon Energy Gun Heavy Particle Gun Energy Cannon Heavy Plasma Cannon Ballistic Gun Enhanced Autogun Ballistic Cannon Graviton Cannon Launcher Heavy Missile Launcher Special Weapon Advanced Remote Datajack Impact Weapon Hammer Slashing Weapon Phasing Sabre Special Melee Weapon Datajack Build | -11 -10 -10 -9 -9 -9 -8 -8 -8 -7 -6 -5 -5 -5 -5 -5 -5 -4 -4 -4 -4 -4 -4 -3 -3 -3 -2 -2 -1 -1 -1 ------- Run | Yrd Mat Min Mat Min Exi Min Mat Sto Fac Fac Fac Was Fac Upp Upp War Pro Fac Ext Cet Arc Hub Res Qua Sec Res Tes Acc Com Ac0 Slots Evolved 18 | . . . 2 . . . 2 . 2 2 2 . . . . . . 2 . . . . 2 . . 2 . 2 . . Power 1 | . . . . . . . . . . . . . . . . . . 1 . . . . . . . . . . . . Propulsion 4 | . . . . . . . 1 . 1 1 . . . . . . . . . . . . 1 . . . . . . . Utility 12 | . . . 1 . . . 1 . 1 1 2 . . . . . . 1 . . . . 1 . . 2 . 2 . . Weapon 1 | . . . 1 . . . . . . . . . . . . . . . . . . . . . . . . . . . Parts Attached 697 | 8 20 . 32 6 4 14 20 32 26 56 41 11 11 1 2 12 13 14 30 15 12 15 15 44 60 13 42 14 76 38 Power 34 | 1 1 . 2 . 1 1 . 2 . 2 1 1 2 . . 1 . 2 . 2 . 1 . 2 4 . 3 . 1 4 Engine 10 | 1 1 . 2 . 1 1 . 2 . 1 1 . . . . . . . . . . . . . . . . . . . Core 2 | . . . . . . . . . . 1 . . . . . . . 1 . . . . . . . . . . . . Reactor 22 | . . . . . . . . . . . . 1 2 . . 1 . 1 . 2 . 1 . 2 4 . 3 . 1 4 Propulsion 79 | 2 2 . 5 1 . 2 5 5 3 8 11 5 . . 1 . . 1 7 2 . 1 2 3 2 . 1 . 7 3 Treads 67 | 2 2 . 5 1 . 2 5 4 3 8 2 4 . . 1 . . . 7 2 . 1 2 3 2 . 1 . 7 3 Leg 2 | . . . . . . . . . . . . 1 . . . . . 1 . . . . . . . . . . . . Wheel 9 | . . . . . . . . . . . 9 . . . . . . . . . . . . . . . . . . . Hover . | . . . . . . . . . . . . . . . . . . . . . . . . . . . . . . . Flight 1 | . . . . . . . . 1 . . . . . . . . . . . . . . . . . . . . . . Utility 330 | 3 8 . 11 . 1 3 8 8 14 27 19 2 5 1 1 4 5 7 13 2 10 5 6 25 43 10 19 11 37 22 Device 220 | 2 5 . 5 . 1 2 4 6 8 15 11 2 4 1 . 3 5 6 11 1 7 2 4 21 36 5 15 10 20 8 Storage 21 | 1 1 . 2 . . . . . 2 . . . . . . . . . 2 1 1 . . 3 1 1 . . 2 4 Processor 21 | . . . . . . . . . 2 . 2 . . . 1 . . . . . . 1 2 . 1 1 . . 8 3 Hackware 17 | . 2 . 2 . . . 2 1 . 2 . . 1 . . . . 1 . . 2 2 . . . 1 1 . . . Protection 43 | . . . 2 . . 1 2 1 2 10 6 . . . . 1 . . . . . . . 1 2 2 3 . 6 4 Artifact 8 | . . . . . . . . . . . . . . . . . . . . . . . . . 3 . . 1 1 3 Weapon 254 | 2 9 . 14 5 2 8 7 17 9 19 10 3 4 . . 7 8 4 10 9 2 8 7 14 11 3 19 3 31 9 Energy Gun 68 | . 4 . 8 . . 2 4 9 4 10 2 1 . . . . . 1 5 4 2 5 2 2 . . . . 1 2 Energy Cannon 106 | . 3 . 3 . . 2 2 1 . 4 4 2 4 . . 3 6 3 2 5 . . 4 9 7 2 13 3 17 7 Ballistic Gun 9 | 2 . . . . . . . 2 3 2 . . . . . . . . . . . . . . . . . . . . Ballistic Cannon 15 | . . . . . . . . . . 1 . . . . . . . . . . . . . 1 3 . 1 . 9 . Launcher 28 | . . . 2 5 . 3 . 3 . 2 2 . . . . 2 2 . . . . 1 . 1 . . 2 . 3 . Special Weapon 10 | . 1 . . . . . . . . . 1 . . . . 2 . . 3 . . . . . . 1 1 . 1 . Impact Weapon 11 | . 1 . 1 . 1 1 1 2 2 . 1 . . . . . . . . . . . . 1 . . . . . . Slashing Weapon 6 | . . . . . . . . . . . . . . . . . . . . . . 2 1 . 1 . 2 . . . Piercing Weapon . | . . . . . . . . . . . . . . . . . . . . . . . . . . . . . . . Special Melee Weapon 1 | . . . . . 1 . . . . . . . . . . . . . . . . . . . . . . . . . Unidentified Prototypes 69 | . . . 2 . . . . 8 1 5 2 1 . . . 3 . 2 4 2 . 2 2 12 11 4 7 . . 1 Corrupted Parts 10 | . . . . . . . . . . . . . . . . . . . . 1 . . . . 6 1 1 . 1 . System Corruption 53 | . . . . . . . . . . . . . . . . . . . . 5 . . . . 33 5 9 . 1 . Parts Lost 82 | . 4 . 1 2 . 6 4 . 4 3 21 . . . . . 1 2 4 . . . . 5 2 . 4 1 . 18 Power 8 | . 1 . . . . 1 . . . . 1 . . . . . . . . . . . . . . . 2 . . 3 Propulsion 28 | . 2 . . 1 . 1 2 . 1 2 12 . . . . . . 1 1 . . . . . . . . . . 5 Utility 27 | . 1 . . . . 1 2 . 3 . 6 . . . . . . 1 1 . . . . 3 2 . 1 1 . 5 Weapon 19 | . . . 1 1 . 3 . . . 1 2 . . . . . 1 . 2 . . . . 2 . . 1 . . 5 Highest Loss Streak 7 | . 2 . 1 1 . 2 3 . 2 1 7 . . . . . 1 1 2 . . . . 2 2 . 2 1 . 5 To Critical Strikes 2 | . . . . . . . . . . . 1 . . . . . . . 1 . . . . . . . . . . . Average Slot Usage (%) 84 | . 97 85 94 99 88 81 90 89 91 99 92 91 86 88 88 86 87 88 91 88 88 87 85 77 78 79 76 73 72 66 Engine 2 | . 11 . 6 11 11 11 9 9 7 3 . 1 . . . . . . . . . . . . . . . . . . Reactor 4 | . . . . . . . . . . . . 3 5 5 5 5 5 5 10 10 10 9 9 5 7 8 6 8 4 5 Treads 18 | . 28 28 22 22 22 21 26 27 29 33 14 8 17 17 17 17 17 13 15 15 15 15 14 14 14 13 13 12 11 10 Device 16 | . 7 . 11 22 22 4 9 3 7 11 19 22 18 17 17 15 17 18 21 26 28 25 22 21 24 24 14 16 18 9 Storage 6 | . 14 14 11 11 11 11 9 9 7 6 5 5 5 5 5 5 5 5 5 10 7 5 4 4 4 4 4 4 5 6 Processor 10 | . . . . . . . . . 7 8 8 17 17 17 17 17 17 12 10 10 10 13 14 13 7 9 13 12 16 21 Hackware 3 | . 6 14 9 . . . 3 5 . 7 7 . 2 5 5 5 5 10 9 . . 1 4 4 2 . 7 7 . . Protection 3 | . . . . . . 7 7 9 5 3 2 . . . . . . . . . . . . . . 7 3 4 6 6 Energy Gun 7 | . 13 . 21 11 . 4 17 20 20 13 10 5 2 . . . . . 6 9 13 13 9 4 . . . . . 3 Energy Cannon 6 | . 10 28 8 11 . 9 7 . . 3 3 6 13 17 17 13 10 15 7 5 2 . 2 6 8 8 9 3 3 4 Peak Build Rating 245 | 7 11 10 26 23 28 41 40 46 58 77 80 112 116 108 110 128 125 134 134 148 153 161 178 203 212 213 226 245 245 222 Average Rating 128 | 5 9 9 20 21 22 27 34 43 52 65 71 92 108 108 108 114 117 128 121 138 151 154 172 180 194 207 214 228 229 204 On Entrance 104 | . 7 9 10 23 23 28 23 35 42 52 72 75 111 108 108 110 128 124 134 127 148 153 156 178 199 198 213 209 218 209 Naked Turns . | . . . . . . . . . . . . . . . . . . . . . . . . . . . . . . . Heaviest Build 218 | 12 22 16 110 102 99 112 116 119 114 138 134 130 144 129 129 157 154 161 171 174 161 163 162 173 174 168 185 182 218 206 Greatest Support 280 | 40 40 40 40 40 40 40 60 60 88 118 112 158 158 158 160 160 160 160 163 183 183 190 235 270 280 275 275 275 275 230 Greatest Overweight (x) 8 | . . . 2 2 2 2 1 2 1 1 8 3 . . . . . 1 2 1 . . . . . . . . 1 1 Average Overweight (x) . | . . . 1 2 2 2 1 1 1 . 1 1 . . . . . . . . . . . . . . . . . . Largest Inventory Capacity 25 | 8 10 10 25 25 25 25 25 25 25 25 25 25 25 25 25 25 25 25 25 25 25 25 25 25 25 25 25 25 25 25 Average Capacity 24 | 7 9 10 20 25 25 25 25 25 25 25 25 25 25 25 25 25 25 25 25 25 25 25 25 25 25 25 25 25 25 25 Most Carried 25 | 5 10 10 25 25 25 25 25 25 25 25 25 25 25 25 25 25 25 25 25 25 25 25 25 25 25 25 25 25 25 25 Average Carried 23 | 2 8 9 20 24 24 24 24 24 24 24 23 24 24 25 23 24 24 24 24 24 24 24 24 24 24 24 24 24 24 21 Final Capacity 25 | 8 10 10 25 25 25 25 25 25 25 25 25 25 25 25 25 25 25 25 25 25 25 25 25 25 25 25 25 25 25 5 Final Carried 25 | 5 10 10 25 25 25 23 25 25 25 25 25 25 25 25 25 25 24 25 25 25 25 22 25 25 25 25 25 25 24 2 Class Distribution -------------------- 21% | Scavenger-Gunner 14% | Skirmisher 12% | Scavenger-Mutant 12% | Scavenger-Skirmisher 8% | Mutant 8% | Hacker-Skirmisher 7% | Commander-Skirmisher 4% | Gunner 3% | Tank 3% | Scavenger-Assassin Dominant Class ---------------- Mutant | -10/Materials Mutant | -10/Mines Scavenger-Gunner | -9/Materials Gunner | -9/Mines Mutant | -9/Exiles Mutant | -8/Mines Scavenger-Skirmisher | -8/Materials Skirmisher | -8/Storage Tank | -7/Factory Hacker-Skirmisher | -6/Factory Hacker-Skirmisher | -5/Factory Scavenger-Mutant | -5/Waste Gunner | -5/Factory Skirmisher | -5/Upper Caves Skirmisher | -5/Upper Caves Skirmisher | -5/Warlord Skirmisher | -4/Proximity Caves Hacker-Skirmisher | -4/Factory Commander-Skirmisher | -4/Extension Commander-Skirmisher | -4/Cetus Commander-Skirmisher | -4/Archives Commander-Skirmisher | -4/Hub_04(d) Scavenger-Skirmisher | -3/Research Scavenger-Skirmisher | -3/Quarantine Scavenger-Mutant | -3/Section 7 Scavenger-Mutant | -2/Research Scavenger-Skirmisher | -2/Testing Scavenger-Assassin | -1/Access Scavenger-Gunner | -1/Command Scavenger-Gunner | -1/Access_0 Resources | -11 -10 -10 -9 -9 -9 -8 -8 -8 -7 -6 -5 -5 -5 -5 -5 -5 -4 -4 -4 -4 -4 -4 -3 -3 -3 -2 -2 -1 -1 -1 ----------- Run | Yrd Mat Min Mat Min Exi Min Mat Sto Fac Fac Fac Was Fac Upp Upp War Pro Fac Ext Cet Arc Hub Res Qua Sec Res Tes Acc Com Ac0 Matter Collected 10688 | 332 524 . 442 220 . 279 171 519 346 723 422 148 121 37 62 385 224 198 638 225 198 130 163 610 730 149 785 130 1612 165 Remotely 1774 | 222 . . . . . . . . . . . . . . . . . . . . . . . . . . . 80 1472 . Salvage Created 29152 | 171 985 167 1326 231 . 378 368 864 1500 2519 1950 69 402 . 72 135 112 716 1402 554 246 349 263 2433 2318 683 3118 530 3593 1698 Parts 1206 | 15 71 9 86 23 . 12 16 51 66 98 66 2 18 . 3 9 9 30 57 16 14 9 4 94 97 21 133 12 124 41 Haulers Intercepted 30 | . 2 . 4 . . . 1 6 4 3 2 . 2 . . . . . . . . 1 . . . 1 2 2 . . Recyclers Shooed 25 | 2 3 1 . . . . . 1 2 3 8 . . . . . . . . . . . 1 2 . . . . 2 . Parts Field Recycled . | . . . . . . . . . . . . . . . . . . . . . . . . . . . . . . . Retrieved Matter . | . . . . . . . . . . . . . . . . . . . . . . . . . . . . . . . Parts Self-Destructed 16 | . . . . . . . . . . . . . . 3 7 . 6 . . . . . . . . . . . . . Prevented 3 | . . . . . . . . . . . . . . . 3 . . . . . . . . . . . . . . . Kills | -11 -10 -10 -9 -9 -9 -8 -8 -8 -7 -6 -5 -5 -5 -5 -5 -5 -4 -4 -4 -4 -4 -4 -3 -3 -3 -2 -2 -1 -1 -1 ------- Run | Yrd Mat Min Mat Min Exi Min Mat Sto Fac Fac Fac Was Fac Upp Upp War Pro Fac Ext Cet Arc Hub Res Qua Sec Res Tes Acc Com Ac0 Combat Hostiles Destroyed 341 | . 18 2 21 14 . 12 5 8 17 25 19 . 3 . 1 4 9 8 17 7 . 6 1 27 27 6 32 4 29 19 Melee 2 | . 1 . . . . . . . . . . . . . . . . . . . . . . . 1 . . . . . Guns 87 | . 14 . 9 1 . 1 1 6 15 13 10 . 1 . . . . . 5 . . 2 1 7 . . . . . 1 Cannons 94 | . 3 2 3 . . 5 4 1 . 4 2 . 2 . 1 . 1 7 12 . . . . 6 12 2 18 2 6 1 AOE 74 | . . . 9 13 . 5 . . . 5 4 . . . . 4 8 . . 1 . 4 . 2 1 . 4 1 11 2 Classes Destroyed 26 | 3 6 . 2 . . 1 . 1 3 . . . . . . . 1 . 1 . . 1 . 1 3 2 1 . . . Worker 32 | 2 3 1 3 . . . . 3 3 . 5 . 1 . . . . . . . . . 1 . . . 1 1 8 . Builder 22 | . 2 . 4 . . . 1 . . 1 10 . . . . . . . . . . . . . 1 . 3 . . . Tunneler 9 | 3 2 1 . . . . . . 1 . . . . . . . . 1 1 . . . . . . . . . . . Hauler 30 | . 2 . 4 . . . 1 6 4 3 2 . 2 . . . . . . . . 1 . . . 1 2 2 . . Recycler 32 | 1 1 1 2 1 . . . . 2 6 4 . . . . . . 1 . . . 1 1 2 1 . 2 . 6 . Mechanic 3 | . . . . . . . . 1 1 . . . . . . . . . . . . . . 1 . . . . . . Operator 16 | . 2 . 1 . . . . 1 . 1 . . 1 . . . . . . . 7 . . 1 . 1 1 . . . Drone 2 | . . . . . . . . . . . . . . . . . 2 . . . . . . . . . . . . . Watcher 31 | . 3 . 4 . . . 2 . 1 5 2 . . . . . . . 2 1 . . 1 3 2 . 3 . 2 . Swarmer 51 | . 3 . 3 12 . 3 . . . 7 1 . . . . 2 5 . . . . . . . . . 5 . 10 . Grunt 106 | . 15 2 11 3 . 8 4 4 1 6 4 . 3 . . 1 1 4 7 . . 4 . 8 1 1 10 3 5 . Brawler 2 | . . . 2 . . . . . . . . . . . . . . . . . . . . . . . . . . . Protector 1 | . . . . . . . . . . . . . . . . . . . . . . 1 . . . . . . . . Researcher 2 | . . . . . . . . . . . . . . . . . . . . . . . . . 1 . 1 . . . Sentry 42 | . . . 5 . . . 1 5 6 4 1 . . . 1 . 1 2 6 . . 1 . 3 3 1 . . 2 . Specialist 8 | . . . . . . . . . 4 . 4 . . . . . . . . . . . . . . . . . . . Hunter 23 | . . . . . . 1 . . 3 2 4 . . . . 1 . . 2 . . . 1 1 . 2 5 . 1 . Programmer 56 | . . . . . . . . . 2 6 5 . . . . . . 2 1 . . . . 8 17 . 10 1 4 . Heavy 1 | . . . . . . . . . 1 . . . . . . . . . . . . . . . . . . . . . Q-Series 1 | . . . . . . . . . . . . . . . . . . . . . . . . . . . 1 . . . Behemoth 3 | . . . . . . . . . . . . . . . . . . . 1 . . . . . 1 . . . 1 . Cetus Guard 7 | . . . . . . . . . . . . . . . . . . . . 7 . . . . . . . . . . Quarantine Guard 6 | . . . . . . . . . . . . . . . . . . . . . . . . 6 . . . . . . S7 Guard 1 | . . . . . . . . . . . . . . . . . . . . . . . . . 1 . . . . . M Guard 2 | . . . . . . . . . . . . . . . . . . . . . . . . . . . . . 2 . Enhanced Grunt 14 | . . . . . . . . . . . . . . . . . . . . . . . . . . . . . . 14 Enhanced Sentry 1 | . . . . . . . . . . . . . . . . . . . . . . . . . . . . . . 1 Enhanced Hunter 2 | . . . . . . . . . . . . . . . . . . . . . . . . . . . . . . 2 Combat Programmer 2 | . . . . . . . . . . . . . . . . . . . . . . . . . . . . . 2 . Striker 1 | . . . . . . . . . . . . . . . . . . . . . . . . . . 1 . . . . Executioner 2 | . . . . . . . . . . . . . . . . . . . . . . . . . 2 . . . . . Alpha 7 2 | . . . . . . . . . . . . . . . . . . . . . . . . . 2 . . . . . Fortress 1 | . . . . . . . . . . . . . . . . . . . . . . . . 1 . . . . . . Protovariant X 1 | . . . . . . . . . . . . . . . . . . . . . . . . . . . 1 . . . Thug 1 | . . . . . . . . . . . . 1 . . . . . . . . . . . . . . . . . . Butcher 1 | . . . . . . . . . . . . . . . . . . . . . . . . . . 1 . . . . Guerrilla 1 | . . . . . . . . . . . . . . . . . . . 1 . . . . . . . . . . . Best Kill Streak 12 | 5 7 2 9 3 . 3 2 3 4 5 12 . 3 . 1 4 4 4 6 5 3 5 2 9 5 3 7 4 8 8 Combat Bots Only 8 | . 3 2 6 3 . 3 2 1 3 4 4 . 2 . 1 4 4 3 6 4 . 5 1 7 5 3 6 2 6 8 Max Kills in Single Turn 6 | 1 2 1 4 3 . 2 1 2 2 3 6 1 1 . 1 4 2 1 1 2 1 4 1 3 2 1 3 2 6 2 Gunslinging 1 | . . . . . . . . 1 . . . . . . . . . . . . . . . . . . . . . . Exploded 6 | . . . 2 3 . 2 . . . 3 1 . . . . 4 2 . . 1 . 4 . 2 1 . 2 1 6 1 Melee 1 | . 1 . . . . . . . . . . . . . . . . . . . . . . . 1 . . . . . Uniques/NPCs Destroyed 4 | . . . . . . . . . . . . . . . . . . . . . . . . . . . . . 2 2 MAIN.C Shell (-1/Command) MAIN.C (-1/Command) A8 (-1/Access_0) A6 (-1/Access_0) Combat | -11 -10 -10 -9 -9 -9 -8 -8 -8 -7 -6 -5 -5 -5 -5 -5 -5 -4 -4 -4 -4 -4 -4 -3 -3 -3 -2 -2 -1 -1 -1 -------- Run | Yrd Mat Min Mat Min Exi Min Mat Sto Fac Fac Fac Was Fac Upp Upp War Pro Fac Ext Cet Arc Hub Res Qua Sec Res Tes Acc Com Ac0 Hostile Shots Fired 2522 | . 103 15 66 20 . 69 35 18 197 201 221 . 4 . 2 20 32 48 111 13 6 21 . 150 261 22 174 24 153 536 Missed 694 | . 25 3 16 8 . 10 10 5 79 77 52 . 1 . 1 6 15 10 24 4 1 3 . 43 66 5 34 11 46 139 Intercepted 1 | . . . . . . . . . . . . . . . . . . . . . . . . . . . . . 1 . Damage Taken 34933 | . 951 236 711 160 . 945 635 258 1524 1494 3109 . 67 . 23 266 391 808 1331 219 83 214 166 2667 1471 418 2975 226 2512 11073 Core 3449 | . 152 . 59 25 . 98 50 54 210 57 399 . . . . 49 40 22 79 13 24 18 89 94 184 49 74 13 226 1371 Absorbed by Shields 4197 | . . . . . . . . . . . . . . . . . . . 123 134 58 188 75 434 596 . . . 529 2060 Reduced by Siege Mode 1062 | . . . . . . . . . . . . . . . . . . 109 130 . . . . 239 65 . 86 . 177 256 Redirected to Shielding 139 | . . . . . . . . . . . . . . . . . . . . . . . . . . 31 . . . 108 Ignored by Resistances 5441 | . . . . . . . . . . 165 196 . . . . . . . . . . . . . 2593 102 1095 56 1234 . Regen/Repaired (Parts) 5867 | . . . . . . . 207 . . 99 . 350 165 . 23 . . . . . . . . 65 41 211 1353 62 1035 2256 Core Remaining (%) 73 | 100 . 39 . . . 54 . 81 70 93 . . . . . . 51 . . . . 86 . . 66 . 91 . . . Volleys Fired 1862 | 21 87 12 64 15 . 46 20 52 67 123 86 . 15 3 5 27 36 34 86 6 19 30 31 152 166 29 156 59 165 250 Largest 3 | 2 2 2 3 2 . 2 3 3 3 3 3 . 3 3 3 2 3 3 3 3 3 3 3 3 1 1 1 1 3 1 Hottest 270 | 40 130 120 180 112 . 250 198 194 183 220 250 . 270 270 270 180 270 270 270 250 212 212 225 225 250 120 250 250 250 250 Shots Fired 2954 | 42 172 24 128 17 . 56 51 140 201 285 185 1 39 11 15 28 56 70 172 8 53 47 55 204 173 29 159 59 224 250 Gun 1354 | 42 148 . 76 4 . 9 31 122 201 224 134 . 4 . . . . . 54 2 40 45 30 96 . . . . 4 88 Cannon 1451 | . 23 24 42 . . 39 20 13 . 59 46 1 35 11 15 7 45 70 81 6 13 . 25 106 173 29 149 59 198 162 Launcher 89 | . . . 10 13 . 8 . 5 . 2 4 . . . . 1 11 . . . . 2 . 2 . . 10 . 21 . Special 60 | . 1 . . . . . . . . . 1 . . . . 20 . . 37 . . . . . . . . . 1 . Kinetic 222 | 42 40 . . . . . . 21 16 26 . . . . . . . . . . . . . 1 . . . . 76 . Thermal 2389 | . 132 24 118 4 . 48 51 114 185 257 180 1 39 11 15 6 45 70 135 7 53 45 49 172 125 2 82 59 110 250 Explosive 42 | . . . 3 13 . 8 . . . 2 4 . . . . 1 11 . . . . . . . . . . . . . Electromagnetic 211 | . . . 7 . . . . 5 . . . . . . . . . . . . . . . 29 48 27 74 . 21 . Entropic 31 | . . . . . . . . . . . . . . . . 1 . . . 1 . 2 6 2 . . 3 . 16 . Robot Hit Streak 37 | 5 9 10 13 3 . 5 11 18 19 16 11 . 5 7 5 10 9 29 19 5 6 13 4 34 37 8 6 6 28 35 Robot Miss Streak 6 | 3 5 2 3 2 . 2 3 6 3 4 6 2 3 1 2 1 1 1 6 1 3 1 3 3 4 5 6 4 4 4 Penetration Max . | . . . . . . . . . . . . . . . . . . . . . . . . . . . . . . . Secondary Targets 8 | . . . 1 . . . . 1 3 1 1 . . . . . . . . . . . . 1 . . . . . . Max Gunslinging Chain 1 | . . . 1 . . . . 1 1 1 1 . . . . . . . . . . . . 1 . . . . . . Capacitor 486 | . . . . . . . . . . . . . . . . . . . . . . . . 97 140 . . . 4 245 Shots Hit Robots 1736 | 26 103 14 72 3 3 26 32 75 134 169 116 . 15 6 6 20 11 41 119 5 31 24 25 124 91 20 64 19 132 210 Core Hits 1028 | 10 51 7 53 16 . 19 15 25 53 80 76 1 10 1 3 10 13 18 46 14 17 19 6 49 43 9 66 12 121 165 Critical Kills 6 | . . . . . . . . . . 1 . 1 1 . . . . . . . . . . 3 . . . . . . Critical Parts Destroyed 3 | . . . . . . . . . . 1 1 . . . . . . . . . . . . 1 . . . . . . Critical Strikes 54 | . . . 1 . . . . 1 4 15 9 1 1 . . . . . 3 1 3 1 1 8 . . . . 5 . Burn 40 | . . . 1 . . . . 1 4 13 8 . . . . . . . 3 1 3 1 1 4 . . . . . . Meltdown 5 | . . . . . . . . . . 1 . 1 1 . . . . . . . . . . 2 . . . . . . Destroy 3 | . . . . . . . . . . 1 . . . . . . . . . . . . . 2 . . . . . . Blast 5 | . . . . . . . . . . . . . . . . . . . . . . . . . . . . . 5 . Smash 1 | . . . . . . . . . . . 1 . . . . . . . . . . . . . . . . . . . Melee Attacks 61 | . 1 . 2 . 3 1 16 5 8 . 1 . . . . . . . . . . 6 4 8 . . 6 . . . Kinetic 8 | . . . . . . . . . . . . . . . . . . . . . . . . 8 . . . . . . Impact 34 | . 1 . 2 . . 1 16 5 8 . 1 . . . . . . . . . . . . . . . . . . . Slashing 16 | . . . . . . . . . . . . . . . . . . . . . . 6 4 . . . 6 . . . Piercing . | . . . . . . . . . . . . . . . . . . . . . . . . . . . . . . . Sneak Attacks 8 | . . . . . 3 . 1 . . . 1 . . . . . . . . . . . 2 . . . 1 . . . Combat Hostiles . | . . . . . . . . . . . . . . . . . . . . . . . . . . . . . . . Follow-up Attacks . | . . . . . . . . . . . . . . . . . . . . . . . . . . . . . . . Damage Inflicted 75890 | 299 1649 249 2095 818 . 1050 590 1608 2768 4207 4592 32 637 166 263 505 1237 1398 2785 815 930 2153 952 4991 4678 834 4343 1108 9365 18773 Guns 20252 | 299 1414 . 749 32 . 82 327 1284 2768 3266 2375 . 51 . . . . . 900 46 656 681 487 1907 . . . . 138 2790 Cannons 32666 | . 214 248 543 . . 423 227 234 . 513 778 32 565 166 263 70 330 1398 1873 206 274 . 192 1897 3819 834 2820 879 6479 7389 Explosions 21917 | . . . 788 779 . 533 . 57 . 403 1367 . . . . 435 907 . . 563 . 1448 . 933 695 . 1438 229 2748 8594 Melee 660 | . . . . . . . 36 . . . 72 . . . . . . . . . . . 213 254 . . 85 . . . Ramming 395 | . 21 1 15 7 . 12 . 33 . 25 . . 21 . . . . . 12 . . 24 60 . 164 . . . . . Kinetic 4457 | 299 322 . . . . . . 219 144 313 . . . . . . . . . . . . . 254 . . . . 2906 . Thermal 56205 | . 1306 248 1397 68 . 557 554 1299 2624 3466 4125 32 616 166 263 70 330 1398 2773 815 930 681 679 2848 3625 42 1325 1108 4087 18773 Explosive 3998 | . . . 421 743 . 481 . . . 403 395 . . . . 435 907 . . . . . . . . . 213 . . . Electromagnetic 7234 | . . . 262 . . . . 57 . . . . . . . . . . . . . . . 956 889 792 2720 . 1558 . Impact 108 | . . . . . . . 36 . . . 72 . . . . . . . . . . . . . . . . . . . Slashing 298 | . . . . . . . . . . . . . . . . . . . . . . . 213 . . . 85 . . . Piercing . | . . . . . . . . . . . . . . . . . . . . . . . . . . . . . . . Entropic 3195 | . . . . . . . . . . . . . . . . . . . . . . 1448 . 933 . . . . 814 . Highest Corruption 46 | . 2 2 2 2 2 2 9 9 1 4 27 27 27 27 27 27 . 1 2 7 7 . . 7 46 5 16 . 3 . Average Corruption 6 | . 1 2 2 2 2 2 9 9 1 1 18 27 27 27 27 27 . 1 1 6 5 . . 6 13 5 5 . 2 . Corruption Purged 15 | . . . . . . . . . . 4 . . . . . . . . . . 7 . . . . . . . 4 . Corruption Blocked . | . . . . . . . . . . . . . . . . . . . . . . . . . . . . . . . Effects 619 | . 19 2 23 15 6 22 3 65 . 20 37 18 25 21 28 3 . 4 27 19 6 . . 96 85 9 58 . 8 . Message Errors 150 | . 4 1 4 6 1 2 2 22 . 8 7 2 7 4 8 . . . 7 6 1 . . 23 21 2 10 . 2 . Matter Fused 146 | . 7 1 7 4 1 6 1 15 . 4 3 5 4 4 9 2 . 2 9 1 2 . . 23 22 1 11 . 2 . Heat Flow Errors 76 | . 1 . 6 . 1 2 . 5 . 4 7 2 2 4 4 1 . 2 1 3 . . . 9 13 . 8 . 1 . Energy Discharges 74 | . 3 . 1 2 2 4 . 8 . 2 6 6 3 1 1 . . . . 3 . . . 11 7 1 11 . 2 . Parts Rejected 3 | . . . . . . 1 . . . . . . . . . . . . . . . . . 1 1 . . . . . Parts Fused 9 | . . . . . . 1 . . . 1 . . 1 . . . . . 2 . . . . 2 1 . . . 1 . Data Loss (minor) 66 | . 1 . 2 1 1 2 . 6 . . 4 2 4 2 1 . . . 5 1 2 . . 13 7 4 8 . . . Data Loss (major) 22 | . . . . 1 . 3 . 1 . . . . . 2 . . . . . 4 . . . 5 4 . 2 . . . Misfires 37 | . 1 . 2 . . 1 . 3 . . 2 1 3 2 2 . . . 3 . . . . 5 7 . 5 . . . Alerts 13 | . . . 1 1 . . . 2 . . . . . 2 1 . . . . 1 . . . 3 . 1 1 . . . Misdirections 3 | . . . . . . . . . . . 1 . . . . . . . . . . . . . 2 . . . . . Weapon Failures 20 | . 2 . . . . . . 3 . 1 7 . 1 . 2 . . . . . 1 . . 1 . . 2 . . . Overload Shots . | . . . . . . . . . . . . . . . . . . . . . . . . . . . . . . . Overflow Damage 2309 | . . . 18 64 . 26 16 . . 14 180 . 1 . . . 88 . 12 . 36 22 165 163 252 . 186 45 290 731 Projectiles 1323 | . . . . . . 9 . . . 13 57 . 1 . . . . . 12 . 36 . . 39 252 . 143 45 209 507 Explosions 693 | . . . 18 64 . 17 . . . 1 51 . . . . . 88 . . . . 22 . 124 . . 3 . 81 224 Melee 293 | . . . . . . . 16 . . . 72 . . . . . . . . . . . 165 . . . 40 . . . Knockbacks 20 | . 1 . . . . . . . . . . . . . . . . . . . . . 1 . 4 . . . 14 . Impact 6 | . 1 . . . . . . . . . . . . . . . . . . . . . 1 . 4 . . . . . Kinetic 14 | . . . . . . . . . . . . . . . . . . . . . . . . . . . . . 14 . Secondary . | . . . . . . . . . . . . . . . . . . . . . . . . . . . . . . . Self-Inflicted Damage 1192 | . . . 77 50 . 50 . . . . 114 . . . . . 74 . . . . . . 153 3 . 225 . 14 432 Shots 59 | . . . 3 3 . 2 . . . . 2 . . . . . 2 . . . . . . 1 2 . 11 . 1 32 Rammed 42 | . 9 1 1 1 . 5 . 2 . 2 . . 2 . . . . . . . . 2 1 . 16 . . . . . Targets Rammed 44 | . 9 1 1 1 . 5 . 2 . 2 . . 2 . . . . . 1 . . 2 1 . 17 . . . . . Kicked . | . . . . . . . . . . . . . . . . . . . . . . . . . . . . . . . Crushed 2 | . . . . . . . . . . . . . . . . . . . 1 . . . . . 1 . . . . . Highest Temperature 522 | . 416 225 354 . 60 347 272 341 286 276 361 119 199 277 247 211 243 297 128 102 522 154 174 340 330 143 201 198 198 178 Average Temperature 101 | . 126 95 118 . 39 119 82 112 63 78 113 70 79 115 83 63 54 107 60 46 142 45 51 74 112 58 82 110 114 125 Received Heat Transfer 3884 | . 513 90 258 18 . 360 243 117 183 303 393 . 18 . 9 47 27 153 194 4 12 66 . 303 69 18 135 81 117 153 Effects 15 | . 5 . 4 . . 1 . 1 . . . . . . . . . . . . 3 . . . . . 1 . . . Shutdowns 4 | . 1 . 1 . . . . . . . . . . . . . . . . . 2 . . . . . . . . . Energy Bleed 5 | . 2 . 1 . . . . 1 . . . . . . . . . . . . . . . . . . 1 . . . Interference 3 | . 2 . 1 . . . . . . . . . . . . . . . . . . . . . . . . . . . Matter Decay 2 | . . . 1 . . . . . . . . . . . . . . . . . 1 . . . . . . . . . Damage (minor) 1 | . . . . . . 1 . . . . . . . . . . . . . . . . . . . . . . . . Siege Activations 40 | . . . . . . . . . . . . . . . . . . 1 6 . . . . 10 5 1 5 . 3 9 Total Turns 736 | . . . . . . . . . . . . . . . . . . 73 117 . . . . 160 114 1 70 . 110 91 Longest Duration 73 | . . . . . . . . . . . . . . . . . . 73 40 . . . . 39 36 1 30 . 56 28 Robots Corrupted 35 | . . . . . . . . . . . . . . . . . . . . . . . . 7 6 5 11 . 6 . Combat Hostiles 30 | . . . . . . . . . . . . . . . . . . . . . . . . 7 6 4 7 . 6 . Parts Fried 73 | . . . . . . . 2 . . . 1 . . . . . . . . . . . . 20 5 9 24 . 12 . Impact Corruptions 4 | . . . . . . . 1 . . . 2 . . . . . . . . . . . 1 . . . . . . . Robots Melted 62 | . . . . . . 1 . 2 2 5 3 1 1 . . . . 1 1 7 . . . 4 8 . 3 2 6 15 Combat Hostiles 53 | . . . . . . 1 . 1 2 3 3 . . . . . . 1 . 6 . . . 4 7 . 3 1 6 15 Parts Melted 322 | . 4 1 8 1 . 3 1 6 14 26 39 2 2 . . . 1 6 14 15 6 1 2 16 41 . 12 11 26 64 Heat Transferred 86260 | . 2997 518 2764 124 . 1368 1184 2664 5069 6966 9362 50 846 211 361 74 422 1725 4213 3679 1677 1097 955 4287 6217 37 2383 2186 4769 18055 Parts Sabotaged . | . . . . . . . . . . . . . . . . . . . . . . . . . . . . . . . Parts Stolen 1 | . . . . . . . . . . . . . . . 1 . . . . . . . . . . . . . . . Parts Stripped 18 | . . . . . . . . . . . . . . . . . . . . . . . . 18 . . . . . . Power Chain Reactions 6 | . . . 2 . . . . 1 . . . . . . . . . . . . . . . . . . . . 3 . Alert | -11 -10 -10 -9 -9 -9 -8 -8 -8 -7 -6 -5 -5 -5 -5 -5 -5 -4 -4 -4 -4 -4 -4 -3 -3 -3 -2 -2 -1 -1 -1 ------- Run | Yrd Mat Min Mat Min Exi Min Mat Sto Fac Fac Fac Was Fac Upp Upp War Pro Fac Ext Cet Arc Hub Res Qua Sec Res Tes Acc Com Ac0 Peak Influence 1125 | 30 387 181 505 521 . 158 279 327 170 432 493 172 1125 . . . . 364 368 530 384 500 257 331 375 268 969 631 596 . Initial 580 | . 19 60 . 177 . . 25 42 77 72 211 172 120 . . . . 151 105 205 193 64 255 . 186 193 15 580 59 . Average 217 | 10 198 103 232 339 . 58 61 136 60 176 283 172 734 . . . . 231 141 425 291 315 55 172 242 171 450 483 411 . Maximum Alert Level 4 | . 1 . 2 2 . . 1 1 . 2 2 . 4 . . . . 1 1 2 1 2 1 1 1 1 3 2 4 . Low Security (%) 44 | 100 49 100 48 5 . 100 86 63 100 61 14 100 15 . . . . 40 81 . 36 22 91 47 32 60 34 11 2 . Level 1 26 | . 50 . 20 56 . . 13 36 . 36 77 . 1 . . . . 59 18 43 63 25 8 52 67 39 19 . 3 . Level 2 16 | . . . 31 37 . . . . . 2 7 . 3 . . . . . . 55 . 51 . . . . 11 88 40 . Level 3 11 | . . . . . . . . . . . . . 76 . . . . . . . . . . . . . 34 . 44 . Level 4 1 | . . . . . . . . . . . . . 3 . . . . . . . . . . . . . . . 9 . Level 5 . | . . . . . . . . . . . . . . . . . . . . . . . . . . . . . . . High Security . | . . . . . . . . . . . . . . . . . . . . . . . . . . . . . . . Max Security . | . . . . . . . . . . . . . . . . . . . . . . . . . . . . . . . Squads Dispatched 107 | . 4 . 7 . . 1 2 3 10 13 7 . 4 . . . . 3 . 1 . 9 8 4 6 2 13 7 3 . Investigation 29 | . 2 . 4 . . . . . . 6 . . 1 . . . . . . 1 . 2 5 1 . 1 2 4 . . Extermination 31 | . . . . . . . . . 2 5 2 . . . . . . 2 . . . 1 . 3 6 . 5 2 3 . Reinforcement 40 | . 2 . 3 . . 1 2 1 7 2 5 . 2 . . . . 1 . . . 4 3 . . 1 5 1 . . Assault 4 | . . . . . . . . 2 . . . . 1 . . . . . . . . 1 . . . . . . . . Garrison 3 | . . . . . . . . . 1 . . . . . . . . . . . . 1 . . . . 1 . . . Intercept . | . . . . . . . . . . . . . . . . . . . . . . . . . . . . . . . Searches Triggered . | . . . . . . . . . . . . . . . . . . . . . . . . . . . . . . . Construction Impeded 9 | . . . 1 . . 1 . . . 1 2 . 1 . . . . . . . . 1 . . . . 1 1 . . Haulers Reinforced 5 | . . . . . . . . . . 1 1 . . . . . . . . . . . 1 . . 1 1 . . . Active Scanning Responses . | . . . . . . . . . . . . . . . . . . . . . . . . . . . . . . . Cargo Convoy Interrupts 1 | . . . . . . . . . 1 . . . . . . . . . . . . . . . . . . . . . Stealth | -11 -10 -10 -9 -9 -9 -8 -8 -8 -7 -6 -5 -5 -5 -5 -5 -5 -4 -4 -4 -4 -4 -4 -3 -3 -3 -2 -2 -1 -1 -1 --------- Run | Yrd Mat Min Mat Min Exi Min Mat Sto Fac Fac Fac Was Fac Upp Upp War Pro Fac Ext Cet Arc Hub Res Qua Sec Res Tes Acc Com Ac0 Distress Signals 75 | . 1 . 5 . . . 2 4 . 3 3 . 1 . . 4 . 1 2 2 . 1 7 2 2 11 . 4 20 . Communications Jammed 53 | . . . . . . . . . . . . . . . . . . . . . . 10 3 8 8 . 20 4 . . Distress Signals 51 | . . . . . . . . . . . . . . . . . . . . . . 10 3 7 8 . 20 3 . . Times Spotted 627 | . 29 8 31 19 . 12 16 31 19 37 28 . 9 . 7 32 7 16 33 13 13 15 16 36 43 19 42 10 38 48 Peak Tracking Total 14 | . 5 4 6 4 . 3 7 9 3 4 6 . 5 . 3 14 3 6 6 5 2 5 3 7 8 8 6 2 6 8 Tactical Retreats 25 | . 1 1 3 . . . 5 1 . 3 2 . . . . 1 . 2 2 . . . . . 2 . 2 . . . Traps | -11 -10 -10 -9 -9 -9 -8 -8 -8 -7 -6 -5 -5 -5 -5 -5 -5 -4 -4 -4 -4 -4 -4 -3 -3 -3 -2 -2 -1 -1 -1 ------- Run | Yrd Mat Min Mat Min Exi Min Mat Sto Fac Fac Fac Was Fac Upp Upp War Pro Fac Ext Cet Arc Hub Res Qua Sec Res Tes Acc Com Ac0 Traps Triggered 23 | . 3 . 4 . . . . 2 . 3 1 . . . . . . . 2 . . 1 . 1 2 . 2 . 2 . Indirectly . | . . . . . . . . . . . . . . . . . . . . . . . . . . . . . . . Trap Hack Attempts . | . . . . . . . . . . . . . . . . . . . . . . . . . . . . . . . Triggered . | . . . . . . . . . . . . . . . . . . . . . . . . . . . . . . . Disarmed . | . . . . . . . . . . . . . . . . . . . . . . . . . . . . . . . Reprogrammed . | . . . . . . . . . . . . . . . . . . . . . . . . . . . . . . . Reused . | . . . . . . . . . . . . . . . . . . . . . . . . . . . . . . . Traps Extracted . | . . . . . . . . . . . . . . . . . . . . . . . . . . . . . . . Installed 5 | . . . . . . . . . . . . . . . . . . . . . . 5 . . . . . . . . Triggered 34 | . . . . . . . . . 1 . . . . . 2 30 . . . . . . . . . . . . 1 . Machines | -11 -10 -10 -9 -9 -9 -8 -8 -8 -7 -6 -5 -5 -5 -5 -5 -5 -4 -4 -4 -4 -4 -4 -3 -3 -3 -2 -2 -1 -1 -1 ---------- Run | Yrd Mat Min Mat Min Exi Min Mat Sto Fac Fac Fac Was Fac Upp Upp War Pro Fac Ext Cet Arc Hub Res Qua Sec Res Tes Acc Com Ac0 Machines Disabled 79 | . 1 . 1 3 . . 1 4 . . 2 . 9 . . 1 . 2 2 1 3 1 3 14 8 . 12 1 6 4 Max in Single Turn 2 | . 1 . 1 2 . . 1 1 . . 2 . 1 . . 1 . 1 1 1 1 . 1 2 1 . 2 1 2 1 Garrison Access 6 | . . . . . . . . . 2 . . . . . . . . . . . . 1 . . . 1 1 1 . . Phase Generator 1 | . . . . . . . . . . . . . . . . . . . . . . . . . . . . . 1 . Network Hub 2 | . . . . . . . . . . . . . . . . . . . . . . 2 . . . . . . . . Machines Repaired . | . . . . . . . . . . . . . . . . . . . . . . . . . . . . . . . Machines Dismantled . | . . . . . . . . . . . . . . . . . . . . . . . . . . . . . . . Machines Sabotaged 1 | . . . . . . . . . . . . . . . . . . . . . . 1 . . . . . . . . Overloaded Fab Kills . | . . . . . . . . . . . . . . . . . . . . . . . . . . . . . . . Hacking | -11 -10 -10 -9 -9 -9 -8 -8 -8 -7 -6 -5 -5 -5 -5 -5 -5 -4 -4 -4 -4 -4 -4 -3 -3 -3 -2 -2 -1 -1 -1 --------- Run | Yrd Mat Min Mat Min Exi Min Mat Sto Fac Fac Fac Was Fac Upp Upp War Pro Fac Ext Cet Arc Hub Res Qua Sec Res Tes Acc Com Ac0 Machines Accessed 140 | . 6 . 9 1 1 . 3 14 5 17 5 . 2 . . 2 . 3 6 1 . 6 8 17 10 1 12 10 1 . Terminals 98 | . 4 . 6 1 . . 1 13 3 9 4 . 1 . . . . 3 5 1 . 5 5 12 9 . 8 7 1 . Fabricators 6 | . . . . . . . . . . 2 . . . . . . . . . . . . 1 . . . 2 1 . . Repair Stations 4 | . . . . . . . 1 . . 1 . . . . . . . . . . . . . 1 . . . 1 . . Recycling Units 11 | . 2 . 1 . . . 1 1 . 3 1 . 1 . . . . . 1 . . . . . . . . . . . Scanalyzers 9 | . . . 2 . . . . . . 1 . . . . . . . . . . . . 1 3 1 . 1 . . . Garrison Access 9 | . . . . . . . . . 2 1 . . . . . . . . . . . 1 1 1 . 1 1 1 . . Total Hacks 436 | . 23 . 27 2 1 . 13 32 12 47 17 . 6 . . 2 . 8 14 2 . 15 29 58 25 5 68 25 5 . Successful 216 | . 15 . 18 1 1 . 9 18 8 21 9 . 4 . . 2 . 6 7 . . 7 7 31 7 . 32 12 1 . Failed 218 | . 7 . 9 1 . . 4 13 4 26 8 . 2 . . . . 2 7 2 . 8 22 27 18 5 36 13 4 . Catastrophic 32 | . . . 1 . . . . 2 . 5 . . . . . . . . 2 1 . . 5 4 6 2 3 1 . . Database Lockouts 2 | . 1 . . . . . . 1 . . . . . . . . . . . . . . . . . . . . . . Manual 184 | . 15 . 15 . 1 . 3 15 6 22 5 . 3 . . . . 5 4 1 . 9 11 25 8 . 32 4 . . Terminals 321 | . 17 . 18 2 . . 4 30 8 26 15 . 5 . . . . 8 11 2 . 13 21 48 23 . 47 18 5 . Fabricators 32 | . . . . . . . . . . 9 . . . . . . . . . . . . 5 . . . 14 4 . . Repair Stations 10 | . . . . . . . 5 . . 2 . . . . . . . . . . . . . 1 . . . 2 . . Recycling Units 25 | . 6 . 3 . . . 4 2 . 4 2 . 1 . . . . . 3 . . . . . . . . . . . Scanalyzers 26 | . . . 6 . . . . . . 4 . . . . . . . . . . . . 2 7 2 . 5 . . . Garrison Access 19 | . . . . . . . . . 4 2 . . . . . . . . . . . 2 1 2 . 5 2 1 . . Terminal Hacks 95 | . 4 . 4 1 1 . 2 10 2 3 7 . 1 . . 2 . 3 3 . . 3 3 16 5 . 16 8 1 . Record 3 | . . . . . . . . . . . . . . . . . . . . . . . . 3 . . . . . . Part Schematic 2 | . . . 1 . . . . . . . 1 . . . . . . . . . . . . . . . . . . . Robot Analysis 4 | . 1 . 1 . . . . 1 . . . . . . . . . 1 . . . . . . . . . . . . Prototype ID Bank 5 | . 1 . . . . . . 1 . . 1 . . . . . . . . . . . . . . . 1 . 1 . Open Door 16 | . . . . . . . . 4 . . . . . . . 2 . . 2 . . . . 1 3 . . 4 . . Level Access Points 1 | . . . . . . . . . . . . . . . . . . . . . . . . 1 . . . . . . Branch Access Points 6 | . . . 1 . . . 1 . . 1 . . . . . . . 1 . . . . 1 . . . . 1 . . Emergency Access Points 1 | . . . . . . . . . . . 1 . . . . . . . . . . . . . . . . . . . Machine Index 1 | . . . . . . . . . . . . . . . . . . . . . . . . 1 . . . . . . Terminal Index 7 | . . . . . . . . . 1 1 1 . . . . . . 1 . . . 1 . 1 . . 1 . . . Alert Level 15 | . . . . 1 . . . 1 . 1 1 . . . . . . . 1 . . 1 1 3 1 . 3 1 . . Unreport Threat 11 | . . . . . . . . 1 1 . . . 1 . . . . . . . . 1 1 2 1 . 1 2 . . Locate Traps 4 | . . . . . . . . 2 . . . . . . . . . . . . . . . . . . 2 . . . Dispatch Records 1 | . . . . . . . . . . . . . . . . . . . . . . . . . . . 1 . . . Patrol Status 3 | . . . . . . . . . . . 1 . . . . . . . . . . . . 1 . . 1 . . . Transport Status 1 | . 1 . . . . . . . . . . . . . . . . . . . . . . . . . . . . . Recall Investigation 1 | . . . . . . . . . . . . . . . . . . . . . . . . . . . 1 . . . Hauler Manifests 4 | . 1 . . . . . 1 . . . . . . . . . . . . . . . . 1 . . 1 . . . Zone Layout 8 | . . . 1 . . . . . . . 1 . . . . . . . . . . . . 2 . . 4 . . . Derelict Proto ID Bank 1 | . . . . . 1 . . . . . . . . . . . . . . . . . . . . . . . . . Fabricator Hacks 10 | . . . . . . . . . . 4 . . . . . . . . . . . . 1 . . . 4 1 . . Network Status 5 | . . . . . . . . . . 2 . . . . . . . . . . . . 1 . . . 1 1 . . Load Schematic 3 | . . . . . . . . . . 1 . . . . . . . . . . . . . . . . 2 . . . Build 2 | . . . . . . . . . . 1 . . . . . . . . . . . . . . . . 1 . . . Repair Station Hacks 7 | . . . . . . . 5 . . 2 . . . . . . . . . . . . . . . . . . . . Scan Component 4 | . . . . . . . 3 . . 1 . . . . . . . . . . . . . . . . . . . . Repair 3 | . . . . . . . 2 . . 1 . . . . . . . . . . . . . . . . . . . . Recycling Unit Hacks 11 | . 3 . 1 . . . 1 1 . 2 . . 1 . . . . . 2 . . . . . . . . . . . Recycle Component 1 | . 1 . . . . . . . . . . . . . . . . . . . . . . . . . . . . . Retrieve Matter 1 | . . . . . . . . . . . . . . . . . . . 1 . . . . . . . . . . . Retrieve Components 9 | . 2 . 1 . . . 1 1 . 2 . . 1 . . . . . 1 . . . . . . . . . . . Scanalyzer 15 | . . . 5 . . . . . . 3 . . . . . . . . . . . . 1 5 1 . . . . . Insert Component 10 | . . . 2 . . . . . . 1 . . . . . . . . . . . . 1 5 1 . . . . . Analyze 5 | . . . 3 . . . . . . 2 . . . . . . . . . . . . . . . . . . . . Garrison Access Hacks 5 | . . . . . . . . . 2 . . . . . . . . . . . . 1 . . . . 1 1 . . Seal Access 5 | . . . . . . . . . 2 . . . . . . . . . . . . 1 . . . . 1 1 . . Unauthorized Hacks 73 | . 8 . 8 . . . 1 7 4 7 2 . 2 . . . . 3 2 . . 3 2 10 1 . 11 2 . . Terminals 59 | . 7 . 7 . . . 1 7 4 3 2 . 2 . . . . 3 1 . . 3 1 9 . . 9 . . . Track 2 | . . . . . . . . . . . . . . . . . . . . . . 1 . 1 . . . . . . Assimilate 3 | . . . . . . . . . . 2 . . . . . . . 1 . . . . . . . . . . . . Botnet 12 | . 2 . 1 . . . . 2 . 1 1 . 1 . . . . 1 . . . . . 2 . . 1 . . . Disrupt 2 | . . . . . . . . . . . . . . . . . . . . . . . . . . . 2 . . . Operators 10 | . 1 . 1 . . . . . 1 . 1 . 1 . . . . 1 1 . . . 1 1 . . 1 . . . Skim 28 | . 4 . 5 . . . 1 5 3 . . . . . . . . . . . . . . 5 . . 5 . . . Sabotage 2 | . . . . . . . . . . . . . . . . . . . . . . 2 . . . . . . . . Fabricators 7 | . . . . . . . . . . 3 . . . . . . . . . . . . 1 . . . 2 1 . . Report 2 | . . . . . . . . . . 1 . . . . . . . . . . . . . . . . 1 . . . Prioritize 1 | . . . . . . . . . . . . . . . . . . . . . . . . . . . 1 . . . Liberate 2 | . . . . . . . . . . 1 . . . . . . . . . . . . . . . . . 1 . . Haulers 2 | . . . . . . . . . . 1 . . . . . . . . . . . . 1 . . . . . . . Repair Stations 2 | . . . . . . . . . . . . . . . . . . . . . . . . 1 . . . 1 . . Patch 2 | . . . . . . . . . . . . . . . . . . . . . . . . 1 . . . 1 . . Recycling Units 3 | . 1 . 1 . . . . . . . . . . . . . . . 1 . . . . . . . . . . . Recyclers 1 | . . . . . . . . . . . . . . . . . . . 1 . . . . . . . . . . . Tunnel 2 | . 1 . 1 . . . . . . . . . . . . . . . . . . . . . . . . . . . Scanalyzers 2 | . . . . . . . . . . 1 . . . . . . . . . . . . . . 1 . . . . . Researchers 1 | . . . . . . . . . . . . . . . . . . . . . . . . . 1 . . . . . Extract 1 | . . . . . . . . . . 1 . . . . . . . . . . . . . . . . . . . . Garrison Access . | . . . . . . . . . . . . . . . . . . . . . . . . . . . . . . . Data Cores Recovered 1 | . . . . . . . . . . . . . . . . . . . . . . . . . . . 1 . . . Used . | . . . . . . . . . . . . . . . . . . . . . . . . . . . . . . . Hacking Detections 112 | . 4 . 8 1 . . 2 10 4 16 5 . 1 . . . . 3 5 1 . 5 8 13 8 1 11 5 1 . Full Trace Events 14 | . 1 . 1 . . . . . . 4 . . . . . . . . . 1 . . 1 . . 1 2 3 . . Feedback Events 2 | . . . . . . . . . . . . . . . . . . . . . . . . . . . 1 1 . . Corruption 1 | . . . . . . . . . . . . . . . . . . . . . . . . . . . 1 . . . Hackware Fried 1 | . . . . . . . . . . . . . . . . . . . . . . . . . . . . 1 . . Feedback Blocked . | . . . . . . . . . . . . . . . . . . . . . . . . . . . . . . . Robot Schematics Acquired 1 | . . . . . . . . . . . . . . . . . . . . . . . . . . . 1 . . . Robots Built . | . . . . . . . . . . . . . . . . . . . . . . . . . . . . . . . Authchips . | . . . . . . . . . . . . . . . . . . . . . . . . . . . . . . . Time . | . . . . . . . . . . . . . . . . . . . . . . . . . . . . . . . Total Robot Build Rating . | . . . . . . . . . . . . . . . . . . . . . . . . . . . . . . . Part Schematics Acquired 13 | . . . 2 . . . . . . 2 1 . . . . . . . . . . . . . . . 8 . . . Parts Built 1 | . . . . . . . . . . 1 . . . . . . . . . . . . . . . . . . . . Authchips . | . . . . . . . . . . . . . . . . . . . . . . . . . . . . . . . Time 241 | . . . . . . . . . . 204 . . . . . . . . . . . . . . . . 37 . . . Total Part Build Rating 8 | . . . . . . . . . . 8 . . . . . . . . . . . . . . . . . . . . Parts Repaired 3 | . . . . . . . 2 . . 1 . . . . . . . . . . . . . . . . . . . . Time 107 | . . . . . . . 77 . . 30 . . . . . . . . . . . . . . . . . . . . Parts Recycled 1 | . 1 . . . . . . . . . . . . . . . . . . . . . . . . . . . . . Recycled Matter . | . . . . . . . . . . . . . . . . . . . . . . . . . . . . . . . Retrieved Matter 229 | . . . . . . . . . . . . . . . . . . . 229 . . . . . . . . . . . Retrieved Components 39 | . 14 . . . . . 1 2 . 12 . . 1 . . . . . 9 . . . . . . . . . . . Parts Scanalyzed 2 | . . . 1 . . . . . . 1 . . . . . . . . . . . . . . . . . . . . Part Schematics Acquired 2 | . . . 1 . . . . . . 1 . . . . . . . . . . . . . . . . . . . . Parts Damaged . | . . . . . . . . . . . . . . . . . . . . . . . . . . . . . . . Bothacking | -11 -10 -10 -9 -9 -9 -8 -8 -8 -7 -6 -5 -5 -5 -5 -5 -5 -4 -4 -4 -4 -4 -4 -3 -3 -3 -2 -2 -1 -1 -1 ------------ Run | Yrd Mat Min Mat Min Exi Min Mat Sto Fac Fac Fac Was Fac Upp Upp War Pro Fac Ext Cet Arc Hub Res Qua Sec Res Tes Acc Com Ac0 Used RIF Installer . | . . . . . . . . . . . . . . . . . . . . . . . . . . . . . . . Robots Hacked 10 | . . . . . 3 . . . . . 1 . . . . 3 . . 2 . . . . . . . . . 1 . Non-combat 4 | . . . . . 2 . . . . . 1 . . . . 1 . . . . . . . . . . . . . . Combat 5 | . . . . . 1 . . . . . . . . . . 2 . . 2 . . . . . . . . . . . Robot Hacks Applied 9 | . . . . . 3 . . . . . 1 . . . . 3 . . 2 . . . . . . . . . . . parse_system 8 | . . . . . 3 . . . . . . . . . . 3 . . 2 . . . . . . . . . . . find_chute 1 | . . . . . . . . . . . 1 . . . . . . . . . . . . . . . . . . . Manual 1 | . . . . . . . . . . . . . . . . . . . . . . . . . . . . . 1 . Relay Couplers Released 5 | . . . . . . . . . . . . . . . . . . . . . . . . . 4 . 1 . . . Machine Destruction 1 | . . . . . . . . . . . . . . . . . . . . . . . . . . . 1 . . . Programmers 4 | . . . . . . . . . . . . . . . . . . . . . . . . . 4 . . . . . Fabnet Peak Effective % . | . . . . . . . . . . . . . . . . . . . . . . . . . . . . . . . Robots Rewired 28 | . . . . . . . . . . . . . . . . 5 . . 23 . . . . . . . . . . . Allies Hacked 4 | . . . . . . . . . . . . . . . . 4 . . . . . . . . . . . . . . Hacks Repelled . | . . . . . . . . . . . . . . . . . . . . . . . . . . . . . . . Allies | -11 -10 -10 -9 -9 -9 -8 -8 -8 -7 -6 -5 -5 -5 -5 -5 -5 -4 -4 -4 -4 -4 -4 -3 -3 -3 -2 -2 -1 -1 -1 -------- Run | Yrd Mat Min Mat Min Exi Min Mat Sto Fac Fac Fac Was Fac Upp Upp War Pro Fac Ext Cet Arc Hub Res Qua Sec Res Tes Acc Com Ac0 Total Allies 77 | . . 2 . 3 . . . 12 . 2 . 20 . . . 5 . 1 25 5 . . . . . . . 2 . . Largest Group 20 | . . 2 . 3 . . . 10 . 2 . 20 19 17 15 18 . 1 14 17 16 10 . . . . . 2 . . Highest-Rated Group 1060 | . . 41 . 40 . . . 173 . 52 . 765 719 627 573 742 . 10 680 1060 964 566 . . . . . 128 . . Highest-Rated Ally 159 | . . 31 . 16 . . . 31 . 26 . 46 46 46 46 68 . 10 159 159 143 96 . . . . . 64 . . Total Orders 17 | . . . . . 1 1 1 1 . . . 1 4 . . . . 1 3 . 2 1 . . 1 . . . . . STAY 2 | . . . . . . . . . . . . . . . . . . 1 . . 1 . . . . . . . . . FOLLOW 1 | . . . . . . . . . . . . . . . . . . . . . 1 . . . . . . . . . EXPLORE 9 | . . . . . 1 . 1 1 . . . 1 3 . . . . . 1 . . . . . 1 . . . . . RETURN 5 | . . . . . . 1 . . . . . . 1 . . . . . 2 . . 1 . . . . . . . . Ally Attacks 667 | . . 22 . 29 . . . 106 . . . . 125 6 28 99 . . 95 41 45 65 . . . . . 6 . . Total Damage 17009 | . . 250 . 245 . . . 1257 . . . . 2436 158 688 3456 . . 2713 1084 1505 3023 . . . . . 194 . . Kills 111 | . . 5 . 6 . . . 15 . . . . 21 1 4 16 . . 14 6 5 17 . . . . . 1 . . Allies Corrupted 1 | . . . . . . . . . . . . . . . . 1 . . . . . . . . . . . . . . Allies Melted 4 | . . . . . . . . . . 1 . 1 . . . 1 . . 1 . . . . . . . . . . . Intel | -11 -10 -10 -9 -9 -9 -8 -8 -8 -7 -6 -5 -5 -5 -5 -5 -5 -4 -4 -4 -4 -4 -4 -3 -3 -3 -2 -2 -1 -1 -1 ------- Run | Yrd Mat Min Mat Min Exi Min Mat Sto Fac Fac Fac Was Fac Upp Upp War Pro Fac Ext Cet Arc Hub Res Qua Sec Res Tes Acc Com Ac0 Robot Analysis Total 4 | . 1 . 1 . . . . 1 . . . . . . . . . 1 . . . . . . . . . . . . Derelict Logs Recovered 7 | . . . . 2 . . . . . . . . . 2 1 . 2 . . . . . . . . . . . . . Drone Launches 27 | . . . . . 1 . 1 1 . . . 1 2 . . . . . 9 . . 11 . . 1 . . . . . Drone Recoveries 23 | . . . . . . 1 1 . . . . . 1 . . . . . 9 . . 11 . . . . . . . . Exploration | -11 -10 -10 -9 -9 -9 -8 -8 -8 -7 -6 -5 -5 -5 -5 -5 -5 -4 -4 -4 -4 -4 -4 -3 -3 -3 -2 -2 -1 -1 -1 ------------- Run | Yrd Mat Min Mat Min Exi Min Mat Sto Fac Fac Fac Was Fac Upp Upp War Pro Fac Ext Cet Arc Hub Res Qua Sec Res Tes Acc Com Ac0 Turns Passed 52685 | 148 1706 473 2553 1410 711 1403 1984 1839 2277 3535 1098 394 508 410 614 1406 2590 869 2230 658 597 1032 1734 4223 2142 922 1891 1286 9138 904 Spaces Moved 21961 | 50 744 265 744 423 212 383 300 614 783 1282 428 237 254 225 344 740 668 340 786 342 217 473 753 2160 928 550 864 706 4793 353 Core 6 | 6 . . . . . . . . . . . . . . . . . . . . . . . . . . . . . . Treads 21414 | 44 744 265 744 423 212 383 300 614 783 1282 170 97 254 225 344 740 668 340 786 342 217 473 753 2160 919 550 864 706 4720 292 Legs . | . . . . . . . . . . . . . . . . . . . . . . . . . . . . . . . Wheels 398 | . . . . . . . . . . . 258 140 . . . . . . . . . . . . . . . . . . Hover . | . . . . . . . . . . . . . . . . . . . . . . . . . . . . . . . Flight . | . . . . . . . . . . . . . . . . . . . . . . . . . . . . . . . Fastest Speed 50 | 50 160 160 160 320 320 320 240 240 245 163 103 120 158 158 158 158 158 158 160 160 160 155 152 160 151 151 151 151 151 150 Average Speed 184 | 146 160 160 246 320 320 320 240 249 247 205 173 139 158 158 158 158 158 172 215 165 160 157 160 164 159 151 151 151 173 177 Slowest Speed 625 | 160 160 160 320 320 320 320 240 330 250 246 625 165 158 158 158 158 158 237 320 240 160 160 166 166 160 151 151 151 246 240 Overloaded Moves . | . . . . . . . . . . . . . . . . . . . . . . . . . . . . . . . Propulsion Burnouts . | . . . . . . . . . . . . . . . . . . . . . . . . . . . . . . . Robots Hopped . | . . . . . . . . . . . . . . . . . . . . . . . . . . . . . . . Cave-ins Triggered 5 | . . . . . . . 1 . . . 2 . . . . . . . . . . . 1 . . . 1 . . . Teleports 2 | . . . . . . . . . . . . . . . . . . . . . . . . . 1 . . . 1 . Microwarps 10 | . . . . . . . . . . . . . . . . . . . . . . . . . 1 . . . 2 7 Exploration Rate (%) 57 | 3 95 48 68 86 91 60 62 89 23 39 14 96 17 41 50 84 84 15 88 81 75 45 20 99 59 24 92 22 84 30 Regions Visited 30 Branch Regions 18 Pre-discovered Areas 8 | . 1 . 5 . . . . 1 . . . . . . . . 1 . . . . . . . . . . . . . Known Exits Taken 22 | . . . 1 . . 1 1 1 1 1 . . 1 1 1 1 1 1 1 1 1 1 1 1 1 1 1 1 . . Unknown Exits Taken 6 | 1 1 1 . 1 1 . . . . . . . . . . . . . . . . . . . . . . . 1 . Scrap Searched 10 | . . 1 . 2 . 1 . . . . . . . . 1 . 5 . . . . . . . . . . . . . Spaces Dug 330 | . 2 . 9 38 . 9 11 3 2 19 13 . 4 3 4 4 30 14 2 . . 13 7 21 17 1 27 12 63 2 Terrain Destroyed 1673 | . 2 . 25 105 . 106 11 7 2 62 84 . 10 6 7 17 164 26 19 3 3 37 13 64 43 1 148 34 293 381 Melee 31 | . 1 . 2 . . 1 11 3 2 . . . . . . . . . . . . 6 1 . . . 4 . . . Projectile 443 | . 1 . . . . 6 . . . 42 22 . 10 6 7 4 35 26 19 . 3 17 12 44 43 1 52 34 34 25 AOE 1199 | . . . 23 105 . 99 . 4 . 20 62 . . . . 13 129 . . 3 . 14 . 20 . . 92 . 259 356 Terrain Rammed . | . . . . . . . . . . . . . . . . . . . . . . . . . . . . . . . Walls Destroyed . | . . . . . . . . . . . . . . . . . . . . . . . . . . . . . . . Machines Disabled . | . . . . . . . . . . . . . . . . . . . . . . . . . . . . . . . Actions | -11 -10 -10 -9 -9 -9 -8 -8 -8 -7 -6 -5 -5 -5 -5 -5 -5 -4 -4 -4 -4 -4 -4 -3 -3 -3 -2 -2 -1 -1 -1 --------- Run | Yrd Mat Min Mat Min Exi Min Mat Sto Fac Fac Fac Was Fac Upp Upp War Pro Fac Ext Cet Arc Hub Res Qua Sec Res Tes Acc Com Ac0 Total 32243 | 84 1079 291 1348 460 248 494 1496 808 967 1970 642 307 329 272 402 970 2146 561 1214 429 424 714 1230 2726 1553 629 1319 896 5579 656 Wait 6918 | . 193 8 466 13 15 37 1115 73 59 456 58 30 40 44 50 168 1423 169 245 50 164 170 405 305 325 23 217 104 449 44 Move 21796 | 49 743 264 743 422 211 382 299 613 782 1281 426 236 253 224 343 739 667 339 785 341 216 472 752 2159 919 549 862 705 4721 299 Hop . | . . . . . . . . . . . . . . . . . . . . . . . . . . . . . . . Pick Up 296 | 5 14 3 23 2 5 4 15 6 12 16 18 10 4 . 2 11 2 3 4 5 3 4 10 22 18 3 11 6 46 9 Fast Attach 198 | 7 4 . 6 . . 2 3 10 4 10 11 4 . . . 1 1 4 11 5 8 5 6 16 22 7 14 3 28 6 Attach 186 | 1 3 . 5 2 . 9 9 1 5 8 15 3 4 . . 1 5 3 6 4 1 2 2 11 20 3 8 5 30 20 Detach 78 | 1 3 . 2 . 1 4 2 . . 4 1 1 . . . . 1 1 4 1 3 1 1 6 9 2 1 1 19 9 Swap 323 | . 13 . 21 4 4 3 8 21 17 39 15 4 7 1 2 10 7 7 13 6 3 8 7 18 24 3 20 6 19 13 Drop 380 | . 9 3 15 1 9 1 9 21 13 27 9 18 4 . . 13 4 1 11 11 7 9 11 29 33 10 23 7 66 6 Fire 1862 | 21 87 12 64 15 . 46 20 52 67 123 86 . 15 3 5 27 36 34 86 6 19 30 31 152 166 29 156 59 165 250 Melee 61 | . 1 . 2 . 3 1 16 5 8 . 1 . . . . . . . . . . 6 4 8 . . 6 . . . Ram . | . . . . . . . . . . . . . . . . . . . . . . . . . . . . . . . Kick . | . . . . . . . . . . . . . . . . . . . . . . . . . . . . . . . Crush 44 | . 9 1 1 1 . 5 . 2 . 2 . . 2 . . . . . 1 . . 2 1 . 17 . . . . . Escape Stasis 19 | . . . . . . . . 4 . 4 2 . . . . . . . 6 . . . . . . . 1 . 2 . Rewire 77 | . . . . . . . . . . . . 1 . . . . . . 42 . . . . . . . . . 34 . Trap 5 | . . . . . . . . . . . . . . . . . . . . . . 5 . . . . . . . . Miscellaneous . | . . . . . . . . . . . . . . . . . . . . . . . . . . . . . . . Route ------- -11/Scrapyard -10/Materials (discovered 5 exits: *Mat x3 / [*Min x2]) -10/Mines (discovered 2 exits: *Mat / [*Sub]) -9/Materials (discovered 4 exits: *Mat x3 / *Min) -9/Mines (discovered 2 exits: *Mat / *Exi) -9/Exiles (discovered 2 exits: [*Min x2]) -8/Mines -8/Materials (discovered 3 exits: *Fac / *Sto x2) -8/Storage (discovered 2 exits: *Fac / Rec) -7/Factory (discovered 5 exits: *Fac x3 / Low x2) -6/Factory (discovered 3 exits: *Fac / *Low x2) -5/Factory -5/Waste -5/Factory -5/Upper Caves -5/Upper Caves (discovered 2 exits: *Fac / *War) -5/Warlord -4/Proximity Caves -4/Factory (discovered 8 exits: *Res x3 / Upp x2 / *Ext x2 / Arm) -4/Extension (discovered 2 exits: *Res / *Cet) -4/Cetus (discovered 2 exits: *Res / *Arc) -4/Archives -4/Hub_04(d) -3/Research (discovered 2 exits: *Qua x2) -3/Quarantine (discovered 2 exits: *Res / *Sec) -3/Section 7 -2/Research -2/Testing -1/Access (discovered 2 exits: [*Sur] / *Com) -1/Command (discovered 3 exits: [*Sur x2] / [*Ac0]) -1/Access_0 History --------- Turn | Location | Event 9 | -11/Scrapyard | Discovered new exit (range 13) 149 | -11/Scrapyard | Entered Materials 318 | -10/Materials | Build established: Mutant 358 | -10/Materials | Discovered new exit (range 12) 378 | -10/Materials | Discovered new exit (range 15) 605 | -10/Materials | Discovered new exit (range 14) 855 | -10/Materials | Central database locked down 911 | -10/Materials | Core integrity fell below 50% 1078 | -10/Materials | Build established: Scavenger-Mutant 1389 | -10/Materials | Discovered new exit (range 10) 1398 | -10/Materials | Build established: Mutant 1583 | -10/Materials | Discovered new exit (range 13) 1855 | -10/Materials | Entered Mines 2027 | -10/Mines | Discovered new exit (range 6) 2065 | -10/Mines | Found a damaged Exp. Sensor Array with a note attached 2069 | -10/Mines | Found Prototype Device 2209 | -10/Mines | Assembled infested the area 2214 | -10/Mines | Assisted by a Guerilla fighting off Assembled 2282 | -10/Mines | Discovered new exit (range 8) 2328 | -10/Mines | Entered Materials 2328 | -9/Materials | Evolved 2 slots: Utility x1, Weapon x1 2627 | -9/Materials | Identified exit to Mines 2983 | -9/Materials | Build established: Scavenger-Mutant 3333 | -9/Materials | Discovered new exit (range 16) 4020 | -9/Materials | Identified Exp. Sensor Array 4297 | -9/Materials | Loaded intel: 10 trap records 4357 | -9/Materials | Learned location of Mines (-8) 4359 | -9/Materials | Learned Materials trap positions 4360 | -9/Materials | Learned location of Recycling (-8) 4368 | -9/Materials | Identified exit to Materials 4411 | -9/Materials | Build established: Scavenger-Gunner 4881 | -9/Materials | Entered Mines 4891 | -9/Mines | Assisted by bots powering up and referring to "LRC-V3" 5066 | -9/Mines | Discovered exit to Materials (range 15) 5204 | -9/Mines | Learned Materials security intel 5307 | -9/Mines | Deemed a non-threat by the Exiles lab entrance 5307 | -9/Mines | Discovered new exit (range 5) 5349 | -9/Mines | Build established: Gunner 5600 | -9/Mines | Learned Materials interactive machine intel 6291 | -9/Mines | Entered Exiles 6386 | -9/Exiles | Met 8R-AWN 6426 | -9/Exiles | Met EX-HEX 6521 | -9/Exiles | Met EX-BIN 6564 | -9/Exiles | Aligned with FarCom system 6567 | -9/Exiles | Given EX-Vault access code 6635 | -9/Exiles | Build established: Mutant 6644 | -9/Exiles | Opened EX-Vault 6657 | -9/Exiles | Found Firepult 6662 | -9/Exiles | Found Supersonic Drone Bay 6681 | -9/Exiles | Discovered new exit (range 54) 6688 | -9/Exiles | Discovered new exit (range 72) 6694 | -9/Exiles | Found XL Autogun Array 6765 | -9/Exiles | Warned to stay clear of 0b10 Research branches 6858 | -9/Exiles | Met EX-DEC 7002 | -9/Exiles | Stole three prototypes: Supersonic Drone Bay, Firepult, XL Autogun Array 7002 | -9/Exiles | Entered Mines 7002 | -8/Mines | Accompanied by 1 ally 7468 | -8/Mines | Build established: Skirmisher 7791 | -8/Mines | Build established: Mutant 8376 | -8/Mines | Discovered exit to Materials (range 5) 8405 | -8/Mines | Entered Materials 8405 | -8/Materials | Evolved 2 slots: Propulsion x1, Utility x1 8406 | -8/Materials | Loaded intel: 18 trap records 8408 | -8/Materials | Loaded intel: 19 interactive machine locations 8745 | -8/Materials | Discovered new exit (range 59) 8746 | -8/Materials | Discovered new exit (range 30) 8811 | -8/Materials | Build established: Scavenger-Skirmisher 10023 | -8/Materials | Repaired Lgt. Treads 10076 | -8/Materials | Repaired Adv. Beam Cannon 10112 | -8/Materials | Discovered new exit (range 4) 10263 | -8/Materials | Identified exit to Storage 10327 | -8/Materials | Crushed by falling debris 10358 | -8/Materials | Lost 3 parts (1n2u) 10389 | -8/Materials | Entered Storage 10913 | -8/Storage | Build established: Skirmisher 11056 | -8/Storage | Assisted by bots powering up and referring to "LRC-V3" 11401 | -8/Storage | Build established: Commander-Skirmisher 11526 | -8/Storage | Lost 3 allies 11565 | -8/Storage | Identified exit to Factory 11633 | -8/Storage | Identified exit to Recycling 11639 | -8/Storage | Learned 2 Lower Caves zone layouts 11640 | -8/Storage | Learned location of 2 exits from Factory 11651 | -8/Storage | Learned location of 1 exit from Recycling 11674 | -8/Storage | Learned location of Zion (-6) 11863 | -8/Storage | Build established: Skirmisher 12128 | -8/Storage | Central database locked down 12193 | -8/Storage | Met a pair of Derelict thieves 12228 | -8/Storage | Entered Factory 12228 | -7/Factory | Evolved 2 slots: Propulsion x1, Utility x1 12229 | -7/Factory | Identified exit to Factory 12229 | -7/Factory | Identified exit to Lower Caves 12230 | -7/Factory | FarCom data flow suspended 12255 | -7/Factory | Lost 4 allies 13262 | -7/Factory | Build established: Tank 13264 | -7/Factory | Garrison activated, responded to threat 13965 | -7/Factory | Cargo convoy interrupted 14505 | -7/Factory | Entered another Factory area 14505 | -6/Factory | Evolved 2 slots: Propulsion x1, Utility x1 15060 | -6/Factory | Discovered new exit (range 13) 15235 | -6/Factory | Fabricated Exp. Sensor Array (x1) 15333 | -6/Factory | Identified exit to Lower Caves 15386 | -6/Factory | Build established: Scavenger-Tank 16298 | -6/Factory | Build established: Hacker-Skirmisher 16634 | -6/Factory | Repaired Adv. Beam Rifle 18030 | -6/Factory | Discovered new exit (range 8) 18039 | -6/Factory | Identified exit to Factory 18040 | -6/Factory | Entered another Factory area 18040 | -5/Factory | Evolved 2 slots: Utility x2 18453 | -5/Factory | Crushed by falling debris 18454 | -5/Factory | System corruption reached 10% 18484 | -5/Factory | Lost 3 parts (1n1u1w) 18490 | -5/Factory | Crushed by falling debris 18593 | -5/Factory | Lost 7 parts (4n2u1w) 18841 | -5/Factory | Found Prototype Launcher 18841 | -5/Factory | Identified Mni. Smartbomb Launcher 18980 | -5/Factory | Lost 3 parts (3n) 19046 | -5/Factory | Lost 4 parts (1p2n1u) 19138 | -5/Factory | Sucked down chute 19138 | -5/Factory | Entered Waste 19139 | -5/Waste | Joined by Warlord forces that had cleared the area 19311 | -5/Waste | Found Damper Plating 19343 | -5/Waste | Discovered new exit (range 23) 19375 | -5/Waste | Build established: Scavenger-Mutant 19526 | -5/Waste | Identified exit to Factory 19532 | -5/Waste | Entered Factory 19532 | -5/Factory | Accompanied by 20 allies 19710 | -5/Factory | Build established: Gunner 19832 | -5/Factory | First assault squad dispatched 19902 | -5/Factory | Discovered new exit (range 10) 19927 | -5/Factory | Identified exit to Upper Caves 20040 | -5/Factory | Entered Upper Caves 20040 | -5/Upper Caves | Accompanied by 17 allies 20130 | -5/Upper Caves | Learned location of 2 exits from Factory 20326 | -5/Upper Caves | Identified exit to Upper Caves 20442 | -5/Upper Caves | Build established: Skirmisher 20450 | -5/Upper Caves | Entered another Upper Caves area 20450 | -5/Upper Caves | Accompanied by 16 allies 20450 | -5/Upper Caves | Spotted 2F-2SE(f) 20450 | -5/Upper Caves | Spotted V9-WR3(f) 20451 | -5/Upper Caves | XL Autogun Array stolen by Master Thief 20452 | -5/Upper Caves | Encountered a Master Thief 20452 | -5/Upper Caves | Encountered a Master Thief 20457 | -5/Upper Caves | Allies destroyed V9-WR3(f) 20500 | -5/Upper Caves | Discovered new exit (range 10) 20575 | -5/Upper Caves | Identified exit to Warlord 20938 | -5/Upper Caves | Attracted the attention of an 0b10 checkpoint 21064 | -5/Upper Caves | Entered Warlord 21064 | -5/Warlord | Accompanied by 13 allies 21119 | -5/Warlord | System corruption cleaned by Quarantine Array 21497 | -5/Warlord | Found Prototype Device 21576 | -5/Warlord | Met Warlord 21601 | -5/Warlord | Warlord's base attacked by MAIN.C 21701 | -5/Warlord | Found Prototype Energy Gun 21704 | -5/Warlord | Found Prototype Energy Gun 21711 | -5/Warlord | Found Prototype Launcher 21715 | -5/Warlord | Found Prototype Energy Cannon 21717 | -5/Warlord | Found Prototype Energy Cannon 21735 | -5/Warlord | Build established: Commander-Skirmisher 21924 | -5/Warlord | Identified Vortex Cannon (x2) 21937 | -5/Warlord | Found Prototype Reactor 21943 | -5/Warlord | Found Prototype Device 21951 | -5/Warlord | Warlord forces counterattacked 21952 | -5/Warlord | Found Prototype Device 22054 | -5/Warlord | Spotted Striker 22054 | -5/Warlord | Spotted Striker 22096 | -5/Warlord | Lost 9 allies 22130 | -5/Warlord | Build established: Skirmisher 22276 | -5/Warlord | Warlord base infiltrated, sounded retreat 22334 | -5/Warlord | Opened side exit 22377 | -5/Warlord | Discovered new exit (range 9) 22409 | -5/Warlord | Spotted Executioner 22416 | -5/Warlord | Spotted Striker 22416 | -5/Warlord | Spotted Executioner 22449 | -5/Warlord | Lost 6 allies 22456 | -5/Warlord | Identified exit to Proximity Caves 22458 | -5/Warlord | Identified Vortex Catalyst Activator 22470 | -5/Warlord | Entered Proximity Caves 22473 | -4/Proximity Caves | Spotter reported a threat 22747 | -4/Proximity Caves | Learned Research terminal intel 24664 | -4/Proximity Caves | Attracted the attention of an 0b10 checkpoint 25040 | -4/Proximity Caves | Discovered new exit (range 14) 25058 | -4/Proximity Caves | Identified exit to Factory 25060 | -4/Proximity Caves | Entered Factory 25060 | -4/Factory | Evolved 2 slots: Power x1, Utility x1 25061 | -4/Factory | Identified exit to Extension 25062 | -4/Factory | Identified exit to Research 25062 | -4/Factory | Identified exit to Armory 25143 | -4/Factory | Discovered exit to Research (range 15) 25292 | -4/Factory | Identified exit to Upper Caves 25349 | -4/Factory | Discovered exit to Research (range 16) 25730 | -4/Factory | Build established: Hacker-Skirmisher 25929 | -4/Factory | Entered Extension 27155 | -4/Extension | Build established: Commander-Skirmisher 27355 | -4/Extension | Identified Exp. Cloaking Device 27359 | -4/Extension | Identified Thermal Barrier 27360 | -4/Extension | Identified Minesniffer Drone Bay 27597 | -4/Extension | Spotted B-86 Titan 27616 | -4/Extension | Allies destroyed B-86 Titan 27616 | -4/Extension | Spotted B-86 Titan 27628 | -4/Extension | Destroyed B-86 Titan 27665 | -4/Extension | Lost 6 allies 27967 | -4/Extension | Lost 3 allies 28009 | -4/Extension | Rescued a captive Derelict 28055 | -4/Extension | Rescued A7 28105 | -4/Extension | Discovered exit to Research (range 10) 28110 | -4/Extension | Discovered new exit (range 6) 28118 | -4/Extension | Identified exit to Cetus 28159 | -4/Extension | Entered Cetus 28159 | -4/Cetus | Accompanied by 14 allies (A7) 28164 | -4/Cetus | Acquired a Cetus Manufacturing Module code from A7 28184 | -4/Cetus | Spotted Cetus Guard 28184 | -4/Cetus | Spotted Cetus Guard 28185 | -4/Cetus | Spotted Cetus Guard 28187 | -4/Cetus | Spotted Cetus Guard 28193 | -4/Cetus | Destroyed Cetus Guard 28193 | -4/Cetus | Destroyed Cetus Guard 28194 | -4/Cetus | Destroyed Cetus Guard 28195 | -4/Cetus | Destroyed Cetus Guard 28321 | -4/Cetus | Started Cetus Manufacturing Module 28346 | -4/Cetus | Manufactured an Enhanced Grunt 28371 | -4/Cetus | Manufactured an Enhanced Grunt 28389 | -4/Cetus | Escorted A7 to Cetus Mainframe 28396 | -4/Cetus | Manufactured an Enhanced Grunt 28421 | -4/Cetus | Manufactured an Enhanced Grunt 28446 | -4/Cetus | Manufactured an Enhanced Grunt 28636 | -4/Cetus | Discovered new exit (range 16) 28675 | -4/Cetus | Spotted Cetus Guard 28676 | -4/Cetus | Spotted Cetus Guard 28677 | -4/Cetus | Spotted Cetus Guard 28677 | -4/Cetus | Spotted Cetus Guard 28679 | -4/Cetus | Destroyed Cetus Guard 28679 | -4/Cetus | Destroyed Cetus Guard 28680 | -4/Cetus | Destroyed Cetus Guard 28682 | -4/Cetus | Allies destroyed Cetus Guard 28696 | -4/Cetus | Discovered exit to Research (range 15) 28704 | -4/Cetus | Met Revision 17 28805 | -4/Cetus | Identified exit to Archives 28817 | -4/Cetus | Entered Archives 28817 | -4/Archives | Accompanied by 16 allies (A7) 28822 | -4/Archives | Received a hacking code to weaken MAIN.C 28875 | -4/Archives | Lost 5 allies 28901 | -4/Archives | Discovered new exit (range 15) 28923 | -4/Archives | Identified exit to Hub_04(d) 29414 | -4/Archives | Entered Hub_04(d) 29414 | -4/Hub_04(d) | Accompanied by 10 allies 29620 | -4/Hub_04(d) | Discovered exit to Research (range 14) 29629 | -4/Hub_04(d) | Garrison activated, responded to threat 29753 | -4/Hub_04(d) | Found Prototype Processor 29753 | -4/Hub_04(d) | Identified Exp. Terrain Scan Processor 30002 | -4/Hub_04(d) | Lost 6 allies 30049 | -4/Hub_04(d) | Found Quantum Capacitor 30132 | -4/Hub_04(d) | Network Hub disabled 30132 | -4/Hub_04(d) | Network Hub disabled 30164 | -4/Hub_04(d) | First assault squad dispatched 30416 | -4/Hub_04(d) | Build established: Scavenger-Skirmisher 30446 | -4/Hub_04(d) | Entered Research 30446 | -3/Research | Evolved 2 slots: Propulsion x1, Utility x1 30447 | -3/Research | Loaded intel: 25 terminal locations 30646 | -3/Research | Revision forces began assault on 0b10 30677 | -3/Research | Identified exit to Quarantine 30730 | -3/Research | Met up with Revision 17++ 30919 | -3/Research | Lost 5 allies 31025 | -3/Research | Found Prototype Device 31025 | -3/Research | Identified Adv. Kinecellerator 31059 | -3/Research | Found Gamma Bomb Array 31146 | -3/Research | Research terminal network offline 31267 | -3/Research | Found Prototype Processor 31275 | -3/Research | Identified Exp. Signal Interpreter 31555 | -3/Research | Lost 3 allies 31575 | -3/Research | Crushed by falling debris 32178 | -3/Research | P-80 Master assimilated allied Revision 32180 | -3/Research | Entered Quarantine 32324 | -3/Quarantine | Identified exit to Research 32587 | -3/Quarantine | Cryocooling Duct disabled 32602 | -3/Quarantine | Ambient heat levels rising (+20) 32602 | -3/Quarantine | Non-combat units ordered to evacuate 33063 | -3/Quarantine | Identified Vortex Chain Reactor 33070 | -3/Quarantine | Found Alien Artifact 33084 | -3/Quarantine | Found Alien Artifact 33084 | -3/Quarantine | Identified Dimensional Node Initializer 33084 | -3/Quarantine | Initialized slip node 33105 | -3/Quarantine | Found Alien Artifact 33210 | -3/Quarantine | Found Prototype Device 33210 | -3/Quarantine | Identified Adv. EM Disruption Field 33490 | -3/Quarantine | Destroyed 7 combat bots 33756 | -3/Quarantine | Build established: Scavenger-Mutant 33898 | -3/Quarantine | Found Alien Impact Weapon 33932 | -3/Quarantine | Found Alien Artifact 34006 | -3/Quarantine | Cryocooling Duct disabled 34008 | -3/Quarantine | Cryocooling Duct disabled 34021 | -3/Quarantine | Ambient heat levels rising (+20) 34021 | -3/Quarantine | Combat units ordered to evacuate 34023 | -3/Quarantine | Ambient heat levels rising (+20) 34029 | -3/Quarantine | Identified exit to Section 7 34121 | -3/Quarantine | Quarantine Guard activated 34195 | -3/Quarantine | Spotted Quarantine Guard 34202 | -3/Quarantine | Destroyed Quarantine Guard 34486 | -3/Quarantine | Build established: Scavenger-Gunner 34598 | -3/Quarantine | Spotted Quarantine Guard 34610 | -3/Quarantine | Destroyed Quarantine Guard 34801 | -3/Quarantine | Spotted Quarantine Guard 34809 | -3/Quarantine | Destroyed Quarantine Guard 34832 | -3/Quarantine | Spotted Quarantine Guard 34836 | -3/Quarantine | Destroyed Quarantine Guard 35135 | -3/Quarantine | Build established: Scavenger-Mutant 35196 | -3/Quarantine | Found Alien Artifact 35247 | -3/Quarantine | Identified Core Reset Matrix 35247 | -3/Quarantine | Identified Subatomic Replicator 35309 | -3/Quarantine | Met incapacitated Sigix Warrior 35309 | -3/Quarantine | Lockdown squad dispatched 35315 | -3/Quarantine | Acquired the access code to the Sigix quarantine chamber 35319 | -3/Quarantine | Unlocked Sigix quarantine chamber 35331 | -3/Quarantine | Found Sigix Containment Pod 35487 | -3/Quarantine | Spotted Quarantine Guard 35502 | -3/Quarantine | Destroyed Quarantine Guard 35630 | -3/Quarantine | Identified Core Stripper 35639 | -3/Quarantine | Spotted Fortress 35674 | -3/Quarantine | Destroyed Fortress 35721 | -3/Quarantine | Found Vortex Chain Reactor 35724 | -3/Quarantine | Found Prototype Device 35724 | -3/Quarantine | Identified Exp. EM Disruption Field 35745 | -3/Quarantine | Found Prototype Device 35745 | -3/Quarantine | Identified Exp. Force Field 35909 | -3/Quarantine | Build established: Tank 36298 | -3/Quarantine | Build established: Skirmisher 36354 | -3/Quarantine | Spotted Quarantine Guard 36368 | -3/Quarantine | Destroyed Quarantine Guard 36403 | -3/Quarantine | Entered Section 7 36585 | -3/Section 7 | Identified Hpw. Transdimensional Reconstructor (x2) 36809 | -3/Section 7 | Found Alien Artifact 36809 | -3/Section 7 | Identified Microwarp Drive 36928 | -3/Section 7 | System corruption reached 10% 36928 | -3/Section 7 | Warped through subspace 37084 | -3/Section 7 | Build established: Scavenger-Mutant 37165 | -3/Section 7 | Spotted S7 Guard 37180 | -3/Section 7 | Destroyed S7 Guard 37251 | -3/Section 7 | Found Corrupted Prototype Protection 37257 | -3/Section 7 | Found Alien Artifact 37257 | -3/Section 7 | Identified Integrated Thermoelectric Network 37257 | -3/Section 7 | Installed Integrated Thermoelectric Network, gained heat-energy exchange potential 37320 | -3/Section 7 | Spotted Executioner 37320 | -3/Section 7 | Spotted Executioner 37355 | -3/Section 7 | Destroyed Executioner 37364 | -3/Section 7 | Destroyed Executioner 37381 | -3/Section 7 | Found Corrupted Prototype Processor 37381 | -3/Section 7 | Identified Exp. Core Analyzer 37656 | -3/Section 7 | Spotted B-99 Colossus 37769 | -3/Section 7 | Found Alien Artifact 37769 | -3/Section 7 | Identified LRC Insulator 37769 | -3/Section 7 | Installed LRC Insulator, gained EM resistance (25) 37772 | -3/Section 7 | Found Alien Artifact 37772 | -3/Section 7 | Identified LRC Inertial Stabilizer 37772 | -3/Section 7 | Installed LRC Inertial Stabilizer, increased mass support (+10) 37831 | -3/Section 7 | Found Alien Artifact 37831 | -3/Section 7 | Identified Integrated Reactor 37831 | -3/Section 7 | Installed Integrated Reactor, increased core energy generation (+10) 37834 | -3/Section 7 | Found Integrated Reactor 37834 | -3/Section 7 | Installed Integrated Reactor, increased core energy generation (+10) 37980 | -3/Section 7 | Destroyed B-99 Colossus 38064 | -3/Section 7 | Spotted Alpha 7 38065 | -3/Section 7 | Spotted Alpha 7 38092 | -3/Section 7 | Destroyed Alpha 7 38107 | -3/Section 7 | Destroyed Alpha 7 38199 | -3/Section 7 | Found Microwarp Drive 38346 | -3/Section 7 | Discovered exit to Research (range 15) 38504 | -3/Section 7 | Identified Hvy. Regenerative Plating 38506 | -3/Section 7 | System corruption reached 30% 38545 | -3/Section 7 | Entered Research 38545 | -2/Research | Warlord forces began assault on 0b10 38545 | -2/Research | Evolved 2 slots: Utility x2 38655 | -2/Research | Research machine network offline 38706 | -2/Research | P-80 Master assimilated allied 8N-W4N(b) 38892 | -2/Research | Borebot progress halted 38978 | -2/Research | Borebot progress halted 38996 | -2/Research | Met up with Warlord 39023 | -2/Research | Borebot progress halted 39056 | -2/Research | Lost 3 allies 39117 | -2/Research | Spotted Striker 39127 | -2/Research | Destroyed Striker 39166 | -2/Research | Met DD-05H 39184 | -2/Research | Found Adv. Kinecellerator 39251 | -2/Research | Spotted Striker 39254 | -2/Research | Spotted Striker 39396 | -2/Research | Warlord destroyed during the assault 39397 | -2/Research | Discovered new exit (range 5) 39401 | -2/Research | Identified exit to Testing 39407 | -2/Research | Found Exp. EM Disruption Field 39464 | -2/Research | Build established: Scavenger-Skirmisher 39467 | -2/Research | Entered Testing 39705 | -2/Testing | Found Prototype Energy Cannon 39705 | -2/Testing | Identified Disintegrator 39782 | -2/Testing | Spotted Striker 39785 | -2/Testing | Spotted Striker 39826 | -2/Testing | Found Prototype Launcher 39831 | -2/Testing | Identified Ragnarok Missile Launcher 39904 | -2/Testing | Found Prototype Protection 39904 | -2/Testing | Identified SHELL Armor 40243 | -2/Testing | Build established: Hacker-Gunner 40631 | -2/Testing | Found Prototype Ballistic Cannon 40631 | -2/Testing | Identified Perforator 40642 | -2/Testing | Scanned by Researcher 40696 | -2/Testing | Garrison activated, responded to threat 40712 | -2/Testing | Spotted PX-5MA3AHG1YA 40723 | -2/Testing | Destroyed PX-5MA3AHG1YA 40794 | -2/Testing | Discovered new exit (range 6) 40844 | -2/Testing | Build established: Hacker-Skirmisher 40945 | -2/Testing | Crushed by falling debris 40960 | -2/Testing | Found Prototype Energy Cannon 40960 | -2/Testing | Identified Imp. Potential Cannon 41355 | -2/Testing | Identified exit to Access 41357 | -2/Testing | System corruption reached 10% 41358 | -2/Testing | Entered Access 41358 | -1/Access | Evolved 2 slots: Utility x2 41584 | -1/Access | Discovered new exit (range 6) 41598 | -1/Access | Build established: Scavenger-Assassin 42495 | -1/Access | Identified exit to Command 42495 | -1/Access | Adv. Hacking Suite fried by hacking feedback 42644 | -1/Access | Entered Command 42935 | -1/Command | Spotted B-99 Colossus 42943 | -1/Command | Destroyed B-99 Colossus 43006 | -1/Command | Build established: Scavenger-Mutant 43232 | -1/Command | Spotted M Guard 43250 | -1/Command | Spotted M Guard 43250 | -1/Command | Spotted Combat Programmer 43251 | -1/Command | Spotted Combat Programmer 43273 | -1/Command | Destroyed Combat Programmer 43274 | -1/Command | Destroyed Combat Programmer 43320 | -1/Command | Destroyed M Guard 43320 | -1/Command | Destroyed M Guard 43320 | -1/Command | All MAIN.C guards destroyed 43480 | -1/Command | Build established: Scavenger-Gunner 44287 | -1/Command | 0b10 Conduit disabled 44288 | -1/Command | Met MAIN.C 44301 | -1/Command | Hacked MAIN.C using A7's code 44323 | -1/Command | Destroyed MAIN.C Shell 44326 | -1/Command | MAIN.C activated Command garrisons 44359 | -1/Command | Destroyed MAIN.C 44385 | -1/Command | Discovered new exit (range 31) 44385 | -1/Command | Discovered new exit (range 106) 44385 | -1/Command | Extracted map data and part IDs from MAIN.C's data core 44699 | -1/Command | Found Vortex Chain Reactor 44702 | -1/Command | Found Zero-point Reactor 44706 | -1/Command | Found Exp. Armor Integrity Analyzer 44716 | -1/Command | Found Exp. System Purifier 44719 | -1/Command | Found Exp. EM Disruption Field 44722 | -1/Command | Found Exp. Phase Shifter 44754 | -1/Command | Found Multirail 45033 | -1/Command | Found Exp. Core Analyzer 46013 | -1/Command | Found Quantum Capacitor 46200 | -1/Command | Build established: Scavenger-Mutant 46658 | -1/Command | Build established: Scavenger-Gunner 48061 | -1/Command | Phase Generator disabled 51134 | -1/Command | Found Exp. Core Analyzer 51776 | -1/Command | Warped through subspace to slip node 51776 | -1/Command | Discovered new exit (range 4) 51782 | -1/Command | Entered Access_0 51783 | -1/Access_0 | Met Architect 51784 | -1/Access_0 | Destroyed A8 51797 | -1/Access_0 | Architect warped through subspace 51850 | -1/Access_0 | Architect warped through subspace 51886 | -1/Access_0 | Subspace Access Node disabled 51902 | -1/Access_0 | Architect warped through subspace 51953 | -1/Access_0 | Architect warped through subspace 51981 | -1/Access_0 | Architect warped through subspace 52009 | -1/Access_0 | Architect warped through subspace 52043 | -1/Access_0 | Architect warped through subspace 52077 | -1/Access_0 | Architect warped through subspace 52095 | -1/Access_0 | A6 warped into view 52100 | -1/Access_0 | Destroyed A6 52118 | -1/Access_0 | Architect warped through subspace 52163 | -1/Access_0 | Architect warped through subspace 52201 | -1/Access_0 | Core integrity fell below 50% 52202 | -1/Access_0 | Architect warped through subspace 52213 | -1/Access_0 | Found Exp. Terrain Scanner 52217 | -1/Access_0 | Found Spectral Analyzer 52235 | -1/Access_0 | Architect warped through subspace 52273 | -1/Access_0 | Architect warped through subspace 52317 | -1/Access_0 | Architect warped through subspace 52338 | -1/Access_0 | Destroyed 8 combat bots 52356 | -1/Access_0 | Architect warped through subspace 52382 | -1/Access_0 | Architect warped through subspace 52403 | -1/Access_0 | Architect warped through subspace 52432 | -1/Access_0 | Architect warped through subspace 52447 | -1/Access_0 | Found Integrity Redistributor 52453 | -1/Access_0 | Subspace Access Node disabled 52458 | -1/Access_0 | Architect warped through subspace 52481 | -1/Access_0 | Architect warped through subspace 52504 | -1/Access_0 | Architect warped through subspace 52541 | -1/Access_0 | Core integrity fell below 20% 52549 | -1/Access_0 | Architect warped through subspace 52564 | -1/Access_0 | Found Exp. Powered Armor 52579 | -1/Access_0 | Architect warped through subspace 52605 | -1/Access_0 | Architect warped through subspace 52634 | -1/Access_0 | Architect warped through subspace 52658 | -1/Access_0 | Lost 3 parts (1p1n1w) 52660 | -1/Access_0 | Used Integrity Redistributor, redistributed integrity to core (+102) 52683 | -1/Access_0 | A5 warped into view 52686 | -1/Access_0 | Released all parts (12) 52686 | -1/Access_0 | Destroyed by Architect with Modified Sigix Sheargun Last Messages --------------- 52683_ Microwarped (distance 5). 52684_ Penetrated by Quantum Shear. 52684_ SHELL Armor destroyed. 52684_ Quantum Shear penetrates Wall. 52684_ Penetrated by Quantum Shear. 52684_ Microwarped (distance 12). 52685_ Microwarped (distance 3). 52686_ Released Exp. Powered Armor. 52686_ Released Zero-point Reactor. 52686_ Released Exp. Armor Integrity Analyzer. 52686_ Released Exp. Energy Well. 52686_ Released Spectral Analyzer. 52686_ Released Exp. Terrain Scanner. 52686_ Released Adv. Targeting Computer. 52686_ Released Adv. Terrain Scan Processor. 52686_ Released Huge Storage Unit. 52686_ Released Adv. Targeting Computer. 52686_ Released Adv. Heavy Treads. 52686_ Released Microwarp Drive. 52686_ Penetrated by Quantum Shear. Map ----- +----------------------------------------------------+ | ###### ######## ######### ############# # | | ###### ################### ############### | | #### ################### #######?####### | | ## #### ################### ############### | | # #### #### ############ ############## | | ## ### ############ ############## ### | | ######### ## ############# ##########?### ### | | ######### ############# ############## ### | | ## # ####### ########### "############# | | # # ######## ####?## "" ########### | | ## """#""#### ###### "" ###?########### | | ""#""" #########" "############### | | "" ########## ############### | | ### "" ;;;"#### ## ###### ############# | | ### ""]%; ;#; ##### ############ | | ### "" ! ; ###### ############ # | | " " ; ; ####### ############ # | | """ "";; ####### ############## | | "";; ####### ############## | | " #; ;##### ################# | | """ #; " ### ######?#####?###### | | " ##;; ;##### ######?##??###?#### | | " ## ;; ; #### ##################? | | % "" ####; ;=!#### ################?## | | "" #####; ;!!*### ######?##?#?#??# | | # ""##"####### !!!@!# ########?###### | | # ### ########; !!#!# ####?#######?? | | " ##########0&! !# ? ###?#####??## | | "" ########## # " ######?###### | | ### ############ ##";;# # #####?##?#?#? | | #### ### ############# ###### # ##?####???### | | ##################### ##### ? # ########?###? | | #################### ### ##? #######??#?## | | ###### ########## ## ### ???#?######?? | | #####" """ ######## ## #### ####?#####??# | | ##### " " ####"" ### ##?##? ###???#???#?? | | #####" " " ####"" ### ###### ??#??##???###? | | ###### """ #### " ###### ??##??##?##?? | | ##### ####"" ####? #########???? | | #### #####""# ## ###? ???#####????? | | ### # ########" #### ### #???#?##????? | | ### ########""###? ##? ?#?#####?????? | | ######?### ## ??#### ??#?#?#?#???? | | #### ############# ??#?###????###?????#??? | | ###### ## ###?#### ? ??##?##? ??#???##????? | | ##### ?###?#??#? #?#?###??#?##???#????? | | ##### ? #########? ?#?#?##???#?#????????? | | ## ##### ?##?##?#?### ?##?#??# ?#?????#????? | | ########??####??????###? ##?#?#? ????#???????#? | | # ######## #????###?#???? #?#?#????????????????? | +----------------------------------------------------+ Best States ------------- Heat Dissipation 133 Coolant Potential 185 Energy Generation 97 Energy Capacity 1790 Matter Stores 302 Matter Capacity 550 Sight Range 24 Robot Scan Range 20 Terrain Scan Range 30 Terrain Scan Density 1010 Jamming Range 16 Power Amplification 40 Base Temperature (-) 200 Armor Coverage 2600 Resistance: KI 30 Resistance: TH 50 Resistance: EM 100 Utility Shielding 66 Weapon Shielding 66 Point Defense Rating 240 Weapon Cycling 25 Evasion (%) 40 Targeting Accuracy 24 Target Analysis 8 Core Analysis 12 Armor Integrity Analysis 50 Recoil Reduction 6 Matter Filtering 50 Particle Charging 20 Kinecelleration 50 Offensive Hacking 26 Defensive Hacking 10 Item Schematics ----------------- Exp. Sensor Array | -9/Materials | Scanalyzed Huge Storage Unit | -9/Materials | Hacked Cryofiber Web | -6/Factory | Scanalyzed Imp. Titanium Leg | -6/Factory | Extracted HERF Cannon | -5/Factory | Hacked Adv. KE Penetrator | -2/Testing | Archive Adv. Kinecellerator | -2/Testing | Archive Hdn. Centrium Heavy Treads | -2/Testing | Archive Exp. Targeting Computer | -2/Testing | Archive Exp. Energy Well | -2/Testing | Archive Helical Railgun | -2/Testing | Archive Exp. Myomer Leg | -2/Testing | Archive Cld. Gravmag System | -2/Testing | Archive Robot Schematics ------------------ Y-72 Warden | -2/Testing | Archive Fabricated ------------ Exp. Sensor Array | x1 | -6/Factory Alien Tech Used ----------------- Dimensional Node Initializer Core Stripper Microwarp Drive High-powered Transdimensional Reconstructor Integrated Thermoelectric Network LRC Insulator LRC Inertial Stabilizer Integrated Reactor Integrity Redistributor Achievements -------------- None Challenges ------------ None Game ------ Seed DeliveryNeutronExoskeleton Manual? 0 Play Time 08:48:34 Cumulative 450.6 hours Start 2025.01.03 @ 18:49:46 End 2025.01.10 @ 19:07:13 Sessions 40 Manual Loads 0 Difficulty Rogue Special Mode None Game No. 200 Rogue 200 Adventurer 0 Explorer 0 Win Type - Total 16 Types 9/2/5/0/0/0/0/0/0 Lore% 87 Gallery% 91 Achievement% 77 Wizard Run 0 Options --------- Layout 0 ASCII 0 Keyboard 1 Movement Numpad Keybinds 0 Fullscreen 2 Font 12/Smallcaps Map View 83x54 Zoom Use 0% Tactical HUD 1 Map Filters NONE Filters NONE Steam 1 RUN: d9b44206-7a1a-4d5b-806b-5069fc1fe3c5